Body Name,Body,Service Level,Expense Type,Expense Code,Narrative,Date,Transaction Number,Amount,Capital and Revenue,Supplier Name,Supplier ID
South Ribble Borough Council,http://statistics.data.gov.uk/id/local-authority/30UE,Central Support Services,Materials General,4040,6 SETS BRAKE PADS BIN 539,27/04/2022,0000477865,293.68,Revenue,AA UK CV t/a Hydrair Truck & Trailer,0
South Ribble Borough Council,http://statistics.data.gov.uk/id/local-authority/30UE,Central Support Services,Reactive Repair & Maintenance,2020,Please provide skip as per NAME REDACTED the Civic Centre until end of March 2022,29/04/2022,0000478126,313.50,Revenue,ABLE SKIP HIRE LTD,0
South Ribble Borough Council,http://statistics.data.gov.uk/id/local-authority/30UE,Recreation & Sport,Reactive Repair & Maintenance,2020,Crane Hire for 1 day as per quote Q001 / RQ000033948 Thursday 10th March as per NAME REDACTED,29/04/2022,0000477382,"3,316.50",Revenue,Ainscough Crane Hire Ltd,0
South Ribble Borough Council,http://statistics.data.gov.uk/id/local-authority/30UE,Central Support Services,External Contractors Charges,4570,Spec repair JFC 18187 YA19 NGN,27/04/2022,0000477813,362.33,Revenue,Alan Edwards (Edwards Technical),0
South Ribble Borough Council,http://statistics.data.gov.uk/id/local-authority/30UE,Community Development,Core Fund,4861,Design of Heritage Trails for Penwortham as discussed and agreed,12/04/2022,0000477773,480.00,Revenue,Andrew Allen,0
South Ribble Borough Council,http://statistics.data.gov.uk/id/local-authority/30UE,Homelessness,Contributions to Other Bodies,4730,Training 23/03/2022.,06/04/2022,0000477649,600.00,Revenue,ANDY GALE HOUSING CONSULTANCY,0
South Ribble Borough Council,http://statistics.data.gov.uk/id/local-authority/30UE,Central Support Services,Short Course,1402,NAMES REDACTED TO ATTEND PACE INVESTIGATIVE INTERVIEWING TRAINING ON 27 & 28 APRIL 2022,27/04/2022,0000478046,450.00,Revenue,AQUILA TRAINING SERVICES LTD,0
South Ribble Borough Council,http://statistics.data.gov.uk/id/local-authority/30UE,Central Support Services,Lease Car Rental,1131,REDACTED,12/04/2022,0000477887,253.43,Revenue,Arnold Clark Finance Ltd (Lease Cars),0
South Ribble Borough Council,http://statistics.data.gov.uk/id/local-authority/30UE,Central Support Services,Lease Car Rental,1131,VAT,12/04/2022,0000477887,20.79,Revenue,Arnold Clark Finance Ltd (Lease Cars),0
South Ribble Borough Council,http://statistics.data.gov.uk/id/local-authority/30UE,Short Term Debtors,Manual Control,0001,- VAT,12/04/2022,0000477887,-20.79,Revenue,Arnold Clark Finance Ltd (Lease Cars),0
South Ribble Borough Council,http://statistics.data.gov.uk/id/local-authority/30UE,Central Support Services,Engineering Inspection Insurance,1802,Engineering Insurance  - HSB Engineering Insurance Limited via Risk Management Partners Ltd,12/04/2022,0000477599,669.79,Revenue,Arthur J. Gallagher,0
South Ribble Borough Council,http://statistics.data.gov.uk/id/local-authority/30UE,Central Support Services,Engineering Inspection Insurance,1802,Engineering Inspections - HSB Engineering Insurance Limited via Risk Management Partners Ltd,12/04/2022,0000477599,"3,960.72",Revenue,Arthur J. Gallagher,0
South Ribble Borough Council,http://statistics.data.gov.uk/id/local-authority/30UE,Central Support Services,Terrorism Insurance,2813,Terrorism Insurance for Policy year 01/01/2022 - 31/12/22 - CSL 1084 Chaucer Syndicates 1084 via Arthur J Gallagher (UK) Ltd ,06/04/2022,0000477610,"5,687.47",Revenue,Arthur J. Gallagher,0
South Ribble Borough Council,http://statistics.data.gov.uk/id/local-authority/30UE,Central Support Services,Combined Liability,1801,Combined Liability (including Fidelity Guarantee) Protector Insurance UK,29/04/2022,0000477611,"143,767.68",Revenue,Arthur J. Gallagher,0
South Ribble Borough Council,http://statistics.data.gov.uk/id/local-authority/30UE,Central Support Services,Motor Fleet Policy,3611,Fleet Rated Commercial Motor -Protector Insurance UK Term: 01/01/22 - 31/12/22,06/04/2022,0000477612,"40,669.22",Revenue,Arthur J. Gallagher,0
South Ribble Borough Council,http://statistics.data.gov.uk/id/local-authority/30UE,Central Support Services,Motor Fleet Policy,3611,Motor Lease Insurance - Aviva Insurance Limited via Aon UK. Limited T/as Maven Underwriters Term: 01/01/22 - 31/12/22,06/04/2022,0000477613,"6,720.00",Revenue,Arthur J. Gallagher,0
South Ribble Borough Council,http://statistics.data.gov.uk/id/local-authority/30UE,Central Support Services,Motor Fleet Policy,3611,Motor Trade Insurance - Allianz Insurance Plc - Contract No.: 40/ SM/ 29136347,06/04/2022,0000477614,"4,335.52",Revenue,Arthur J. Gallagher,0
South Ribble Borough Council,http://statistics.data.gov.uk/id/local-authority/30UE,Central Support Services,Personal Accident & Travel,1803,Combined Business Travel/PA/Sickness - American International Group UK Limited via Risk Management Partners Ltd,06/04/2022,0000477615,"1,064.00",Revenue,Arthur J. Gallagher,0
South Ribble Borough Council,http://statistics.data.gov.uk/id/local-authority/30UE,Central Support Services,Property Insurance,2811,General Property Insurance - Protector - 96155431 - Policy year 01/01/2022 - 31/12/2022.,20/04/2022,0000477918,"22,164.80",Revenue,Arthur J. Gallagher,0
South Ribble Borough Council,http://statistics.data.gov.uk/id/local-authority/30UE,Central Support Services,Property Insurance,2811,Commercial Property - Protector - 96155431 - Policy year 01/01/2022 - 31/12/2022,20/04/2022,0000477919,"44,840.32",Revenue,Arthur J. Gallagher,0
South Ribble Borough Council,http://statistics.data.gov.uk/id/local-authority/30UE,Community Development,Miscellaneous Expenses,4851,To supply catering for the COVID thankyou event 5th April 2022,20/04/2022,0000477901,800.00,Revenue,Artisan Deli Limited,0
South Ribble Borough Council,http://statistics.data.gov.uk/id/local-authority/30UE,Capital,Cap Contract Payment,C230,credit rec`d to cancel invoice,20/04/2022,0000477637,"10,461.15",Revenue,BANNISTER HALL LANDSCAPE SUPPLIES,0
South Ribble Borough Council,http://statistics.data.gov.uk/id/local-authority/30UE,Capital,Cap Contract Payment,C230,,20/04/2022,0000477637,55.00,Revenue,BANNISTER HALL LANDSCAPE SUPPLIES,0
South Ribble Borough Council,http://statistics.data.gov.uk/id/local-authority/30UE,Corporate Management,Grants Voluntary Organisation,4711,Practical Support Payment - Food and Welfare essentials,20/04/2022,0000477903,"8,500.00",Revenue,BARNARDOS,0
South Ribble Borough Council,http://statistics.data.gov.uk/id/local-authority/30UE,Surplus or Deficit on Trading,Reactive Repair & Maintenance,2020,"3 phase consumer unit upgrade, 6 x 5 foot lights, 2 LED 15 circular lts at  St John St, Bamber Bridge as per NAME REDACTED",12/04/2022,0000477685,"1,102.44",Revenue,BELEC ELECTRICAL LTD,0
South Ribble Borough Council,http://statistics.data.gov.uk/id/local-authority/30UE,Central Support Services,Planned Annual Repair & Maintenance,2021,Repairs of issues found on the EICR report carried out on the civic centre floors ground 1 2 3 to remove any C2`s and FI from test cert,12/04/2022,0000477689,"1,461.31",Revenue,BELEC ELECTRICAL LTD,0
South Ribble Borough Council,http://statistics.data.gov.uk/id/local-authority/30UE,Community Development,Professional Fees,4510,Easter Camps for HAF,27/04/2022,0000478098,"1,920.00",Revenue,Box Clever CIC,0
South Ribble Borough Council,http://statistics.data.gov.uk/id/local-authority/30UE,Corporate Management,Grants Voluntary Organisation,4711,Practical Support Payment - Food and Welfare essentials,20/04/2022,0000477902,"8,500.00",Revenue,BROADFIELD COMMUNITY  ASSOC,0
South Ribble Borough Council,http://statistics.data.gov.uk/id/local-authority/30UE,Corporate Management,Grants Voluntary Organisation,4711,Practical Support Payment - Food and Welfare essentials,20/04/2022,0000477914,"8,500.00",Revenue,Brownedge Christians Together FoodBank,0
South Ribble Borough Council,http://statistics.data.gov.uk/id/local-authority/30UE,Central Support Services,Materials General,4040,Brush motor GX19 DZF JFC18207,27/04/2022,0000477642,350.75,Revenue,Bucher Municipal Ltd,0
South Ribble Borough Council,http://statistics.data.gov.uk/id/local-authority/30UE,Corporate Management,Grants Voluntary Organisation,4711,Resocialisation caf� - Practical Support Payment,20/04/2022,0000477913,"5,500.00",Revenue,Butter Pie Events,0
South Ribble Borough Council,http://statistics.data.gov.uk/id/local-authority/30UE,Capital,Capital Grant,C570,DFG WORK FOR ADAPTATION FOR EXTENSION FOR LEVEL ACCESS BATHROOM AND BEDROOM AT ADDRESS REDACTED ,20/04/2022,0000478015,"20,000.00",Revenue,C & C Joinery NW Ltd,0
South Ribble Borough Council,http://statistics.data.gov.uk/id/local-authority/30UE,Central Support Services,Hiring Expenses,3212,Hire of RCV VIN REDACTED,27/04/2022,0000477841,900.00,Revenue,C P DAVIDSON & SONS LTD,0
South Ribble Borough Council,http://statistics.data.gov.uk/id/local-authority/30UE,Central Support Services,Hiring Expenses,3212,Hire of RCV VIN REDACTED 28th - 31st March 2022 @ 180.00 per day,27/04/2022,0000477853,720.00,Revenue,C P DAVIDSON & SONS LTD,0
South Ribble Borough Council,http://statistics.data.gov.uk/id/local-authority/30UE,Central Support Services,Hiring Expenses,3212,Hire of RCV - VIN REDACTED 21.3.22 - 31.3.22,29/04/2022,0000478144,"1,500.00",Revenue,C P DAVIDSON & SONS LTD,0
South Ribble Borough Council,http://statistics.data.gov.uk/id/local-authority/30UE,Central Support Services,Agency Staff,1121,Planning consultant to deal with Planning applications,12/04/2022,0000477519,"5,152.00",Revenue,CAPITA PROPERTY AND INFRASTRUCTURE LTD,0
South Ribble Borough Council,http://statistics.data.gov.uk/id/local-authority/30UE,Community Development,Contributions to Other Bodies,4730,To supply and fit carpets as part of the Step up grant scheme,27/04/2022,0000478132,809.47,Revenue,Carpets Direct,0
South Ribble Borough Council,http://statistics.data.gov.uk/id/local-authority/30UE,Corporate Management,Grants Voluntary Organisation,4711,Practical Support Payment,20/04/2022,0000477958,"2,000.00",Revenue,Carr Street Community Centre,0
South Ribble Borough Council,http://statistics.data.gov.uk/id/local-authority/30UE,Central Support Services,Agency Staff,1121,"Provision of a temporary Auditor, commencing 29/11/2021",27/04/2022,0000477959,960.00,Revenue,Castlefield Recruitment Limited,0
South Ribble Borough Council,http://statistics.data.gov.uk/id/local-authority/30UE,Central Support Services,Publications General,4140,Job advert for EHO in EHN per NAME REDACTED,20/04/2022,0000477822,800.00,Revenue,CHARTERED INST OF ENVIRONMENTAL HEALTH,0
South Ribble Borough Council,http://statistics.data.gov.uk/id/local-authority/30UE,Homelessness,Temporary Accommodation,5311,NAME REDACTED ,06/04/2022,0000477657,"1,081.64",Revenue,CHORLEY BOROUGH COUNCIL,0
South Ribble Borough Council,http://statistics.data.gov.uk/id/local-authority/30UE,Homelessness,Temporary Accommodation,5311,NAMES REDACTED,06/04/2022,0000477657,"1,081.64",Revenue,CHORLEY BOROUGH COUNCIL,0
South Ribble Borough Council,http://statistics.data.gov.uk/id/local-authority/30UE,Central Support Services,Materials General,4040,"1 pedal rubber, wide angle mirror, blind switch, mirror bracket & service kit PO20 ZRZ JFC18181",27/04/2022,0000478078,631.76,Revenue,CICELEY COMMERCIALS LTD,0
South Ribble Borough Council,http://statistics.data.gov.uk/id/local-authority/30UE,Central Support Services,Individual Subs Prof. Bodies,1741,MEMBERSHIP SUBSCRIPTION RENEWAL FOR NAME REDACTED REF: 57442,12/04/2022,0000477869,267.00,Revenue,CIIA (CHARTERED INST OF INT AUDITORS),0
South Ribble Borough Council,http://statistics.data.gov.uk/id/local-authority/30UE,Central Support Services,Individual Subs Prof. Bodies,1741,MEMBERSHIP SUBSCRIPTION RENEWAL FOR NAME REDACTED REF: 57279,12/04/2022,0000477871,254.00,Revenue,CIIA (CHARTERED INST OF INT AUDITORS),0
South Ribble Borough Council,http://statistics.data.gov.uk/id/local-authority/30UE,Central Support Services,Individual Subs Prof. Bodies,1741,MEMBERSHIP SUBSCRIPTION RENEWAL FOR NAME REDACTED REF: 60705,12/04/2022,0000477872,254.00,Revenue,CIIA (CHARTERED INST OF INT AUDITORS),0
South Ribble Borough Council,http://statistics.data.gov.uk/id/local-authority/30UE,Community Development,Miscellaneous Expenses,4851,To provide cakes for COVID thankyou event,27/04/2022,0000478099,325.00,Revenue,Cinderbake Kitchen,0
South Ribble Borough Council,http://statistics.data.gov.uk/id/local-authority/30UE,Homelessness,Temporary Accommodation,5311,NAME REDACTED 31/03/2022 - 11/04/2022 ,12/04/2022,0000477873,495.00,Revenue,CLAREMONT HOTEL,0
South Ribble Borough Council,http://statistics.data.gov.uk/id/local-authority/30UE,Homelessness,Temporary Accommodation,5311,NAME REDACTED and children 06/04/2022 - 11/04/2022,12/04/2022,0000477874,497.50,Revenue,CLAREMONT HOTEL,0
South Ribble Borough Council,http://statistics.data.gov.uk/id/local-authority/30UE,Homelessness,Temporary Accommodation,5311,NAME REDACTED and children 04/04/2022 - 13/04/2022,12/04/2022,0000477876,675.00,Revenue,CLAREMONT HOTEL,0
South Ribble Borough Council,http://statistics.data.gov.uk/id/local-authority/30UE,Homelessness,Contributions to Other Bodies,4730,NAME REDACTED 11/04/2022 - 18/04/2022,20/04/2022,0000478057,315.00,Revenue,CLAREMONT HOTEL,0
South Ribble Borough Council,http://statistics.data.gov.uk/id/local-authority/30UE,Homelessness,Temporary Accommodation,5311,NAME REDACTED 11/04/2022 - 18/04/2022,20/04/2022,0000478057,315.00,Revenue,CLAREMONT HOTEL,0
South Ribble Borough Council,http://statistics.data.gov.uk/id/local-authority/30UE,Homelessness,Temporary Accommodation,5311,NAME REDACTED and children 11/04/2022 - 18/04/2022,20/04/2022,0000478057,696.50,Revenue,CLAREMONT HOTEL,0
South Ribble Borough Council,http://statistics.data.gov.uk/id/local-authority/30UE,Homelessness,Temporary Accommodation,5311,NAME REDACTED and children 11/04/2022 - 18/04/2022,20/04/2022,0000478057,525.00,Revenue,CLAREMONT HOTEL,0
South Ribble Borough Council,http://statistics.data.gov.uk/id/local-authority/30UE,Capital,Cap Contract Payment,C230,Description- additional work at Lostock st gerards as requested by NAME REDACTED,12/04/2022,0000477829,"6,695.76",Revenue,Cleveland Land Services (Guisborough) Limited,0
South Ribble Borough Council,http://statistics.data.gov.uk/id/local-authority/30UE,Homelessness,Contributions to Other Bodies,4730,FTA and recharges for NAME AND ADDRESS REDACTED.,12/04/2022,0000477809,"1,003.72",Revenue,COMMUNITY GATEWAY HOUSING ASSOCIATION,0
South Ribble Borough Council,http://statistics.data.gov.uk/id/local-authority/30UE,Corporate Management,Grants Voluntary Organisation,4711,Practical Support Payment - Food and Welfare essentials,20/04/2022,0000477912,"8,500.00",Revenue,Community Network and Outreach,0
South Ribble Borough Council,http://statistics.data.gov.uk/id/local-authority/30UE,Recreation & Sport,Planned Annual Repair & Maintenance,2021,2021 / 2022 annual contract for  2 visits per year for air conditioning maintenance at Leyland Leisure centre as per your ref AMS4317,12/04/2022,0000477821,300.00,Revenue,Coolair Services Limited,0
South Ribble Borough Council,http://statistics.data.gov.uk/id/local-authority/30UE,Central Support Services,Computer Equipment,4241,Install a fibre connection between the Computer Room GL/43 and room GL/52 in South Ribble Civic Centre,27/04/2022,0000478041,"1,701.14",Revenue,Core Integrated Solutions,0
South Ribble Borough Council,http://statistics.data.gov.uk/id/local-authority/30UE,Local Tax Collection,Stationery General,4130,stationery for EOY 2022,12/04/2022,0000477669,"3,636.75",Revenue,CRITIQOM,0
South Ribble Borough Council,http://statistics.data.gov.uk/id/local-authority/30UE,Local Tax Collection,Postage General,4291,postage for EOY 2022,12/04/2022,0000477670,300.00,Revenue,CRITIQOM,0
South Ribble Borough Council,http://statistics.data.gov.uk/id/local-authority/30UE,Development Control,Professional Fees,4510,Mail out of letters re Windmill planning app - Technical Charge,12/04/2022,0000477691,300.00,Revenue,CRITIQOM,0
South Ribble Borough Council,http://statistics.data.gov.uk/id/local-authority/30UE,Local Tax Collection,Postage General,4291,postage for EOY 2022,12/04/2022,0000477706,"19,180.76",Revenue,CRITIQOM,0
South Ribble Borough Council,http://statistics.data.gov.uk/id/local-authority/30UE,Local Tax Collection,Postage General,4291,Postage November to March 2022,20/04/2022,0000477927,283.71,Revenue,CRITIQOM,0
South Ribble Borough Council,http://statistics.data.gov.uk/id/local-authority/30UE,Local Tax Collection,Postage General,4291,Postage November to March 2022,20/04/2022,0000477961,778.10,Revenue,CRITIQOM,0
South Ribble Borough Council,http://statistics.data.gov.uk/id/local-authority/30UE,Local Tax Collection,Stationery General,4130,Stationery November to March 2022,20/04/2022,0000477963,"1,206.40",Revenue,CRITIQOM,0
South Ribble Borough Council,http://statistics.data.gov.uk/id/local-authority/30UE,Local Tax Collection,Postage General,4291,POSTAGE FOR APRIL TO SEPT 2022,29/04/2022,0000478150,"1,648.84",Revenue,CRITIQOM,0
South Ribble Borough Council,http://statistics.data.gov.uk/id/local-authority/30UE,Local Tax Collection,Stationery General,4130,STATIONERY FOR APRIL TO SEPT 2022,29/04/2022,0000478152,422.71,Revenue,CRITIQOM,0
South Ribble Borough Council,http://statistics.data.gov.uk/id/local-authority/30UE,Central Support Services,Legal,4821,PROFESSIONAL SERVICES IN RESPECT OF AN EMPLOYMENT MATTER 25 MARCH - 31 MARCH 2022,27/04/2022,0000478143,"1,419.20",Revenue,DAC BEACHCROFT LLP,0
South Ribble Borough Council,http://statistics.data.gov.uk/id/local-authority/30UE,Homelessness,Temporary Accommodation,5311,NAME REDACTED Anvil Guest House April 2022,20/04/2022,0000478058,340.00,Revenue,David Iddon & Corrina Kellett,0
South Ribble Borough Council,http://statistics.data.gov.uk/id/local-authority/30UE,Central Support Services,Computer Equipment,4241,Wyse 5470 Dell Multimedia Keyboard-KB216 Dell Optical Mouse-MS116 ,12/04/2022,0000475955,"55,237.50",Revenue,DELL CORPORATION LTD,0
South Ribble Borough Council,http://statistics.data.gov.uk/id/local-authority/30UE,Central Support Services,Materials General,4040,3 hydraulic cylinders & 4 pins VO65 KPZ JFC18186,27/04/2022,0000477709,"2,111.75",Revenue,DENNIS EAGLE LTD,0
South Ribble Borough Council,http://statistics.data.gov.uk/id/local-authority/30UE,Central Support Services,Materials General,4040,8 x bushes VO65 KPZ JFC18186,27/04/2022,0000477710,302.71,Revenue,DENNIS EAGLE LTD,0
South Ribble Borough Council,http://statistics.data.gov.uk/id/local-authority/30UE,Central Support Services,Materials General,4040,BEACON LENS JFC 18232 VA19KOX,27/04/2022,0000477965,85.25,Revenue,DENNIS EAGLE LTD,0
South Ribble Borough Council,http://statistics.data.gov.uk/id/local-authority/30UE,Central Support Services,External Contractors Charges,4570,BEACON ASSEMBLY JFC 18232 VA19 KOX,27/04/2022,0000477965,250.56,Revenue,DENNIS EAGLE LTD,0
South Ribble Borough Council,http://statistics.data.gov.uk/id/local-authority/30UE,Central Support Services,Materials General,4040,1 set spring eye bushes VK20 NVV JFC18242,27/04/2022,0000478008,328.74,Revenue,DENNIS EAGLE LTD,0
South Ribble Borough Council,http://statistics.data.gov.uk/id/local-authority/30UE,Corporate Management,Grants and Subscriptions,4741,cover start,27/04/2022,0000478125,"744,138.00",Revenue,Dept for Business Energy & Ind. Strategy (BEIS),0
South Ribble Borough Council,http://statistics.data.gov.uk/id/local-authority/30UE,Central Support Services,Reactive Repair & Maintenance,2020,ATTENDED PROPERTY AND CARRIED OUT THE ADDITIONAL SMOKE DETECTION WORKS NAME REDACTED,20/04/2022,0000478038,504.00,Revenue,DES Electrical Services Ltd,0
South Ribble Borough Council,http://statistics.data.gov.uk/id/local-authority/30UE,Central Support Services,Materials General,4040,"12,000 @ 145.00 per 1,000 - Orange Trade Sacks",29/04/2022,0000478018,725.00,Revenue,Durasak Ltd,0
South Ribble Borough Council,http://statistics.data.gov.uk/id/local-authority/30UE,Central Support Services,Materials General,4040,"12,000 @ 145.00 per 1,000 - Orange Trade Sacks",29/04/2022,0000478019,"1,196.25",Revenue,Durasak Ltd,0
South Ribble Borough Council,http://statistics.data.gov.uk/id/local-authority/30UE,Central Support Services,Materials General,4040,L/H Chair JFC 17773 VU11 HSZ,29/04/2022,0000478061,550.00,Revenue,Euro Municipals Ltd,0
South Ribble Borough Council,http://statistics.data.gov.uk/id/local-authority/30UE,Central Support Services,Materials General,4040,1 suspension tray PO16 HMY JFC18188,29/04/2022,0000478103,528.00,Revenue,F R SHARROCK LTD,0
South Ribble Borough Council,http://statistics.data.gov.uk/id/local-authority/30UE,Payments of Precepts to Parish,Parish Precepts,4870,Farrington Parish precepts,27/04/2022,0000478000,"88,870.00",Revenue,FARINGTON PARISH COUNCIL,0
South Ribble Borough Council,http://statistics.data.gov.uk/id/local-authority/30UE,Waste Collection,External Contractors Charges,4570,Loaders Living Wage Pay Rise March 2022,06/04/2022,0000477631,"2,714.43",Revenue,FCC Environment Services (UK) Ltd,0
South Ribble Borough Council,http://statistics.data.gov.uk/id/local-authority/30UE,Waste Collection,External Contractors Charges,4570,Residual Waste Collection March 2022,12/04/2022,0000477632,"47,367.71",Revenue,FCC Environment Services (UK) Ltd,0
South Ribble Borough Council,http://statistics.data.gov.uk/id/local-authority/30UE,Recycling,External Contractors Charges,4570,Dry Recycable non terrace March 2022,12/04/2022,0000477632,"48,490.57",Revenue,FCC Environment Services (UK) Ltd,0
South Ribble Borough Council,http://statistics.data.gov.uk/id/local-authority/30UE,Recycling,External Contractors Charges,4570,Dry Recycable terrace March 2022,12/04/2022,0000477632,"2,308.24",Revenue,FCC Environment Services (UK) Ltd,0
South Ribble Borough Council,http://statistics.data.gov.uk/id/local-authority/30UE,Recycling,External Contractors Charges,4570,Organic Waste Non Terrace March 2022,12/04/2022,0000477632,"33,573.08",Revenue,FCC Environment Services (UK) Ltd,0
South Ribble Borough Council,http://statistics.data.gov.uk/id/local-authority/30UE,Trade Waste,External Contractors Charges,4570,Schedule 2 Properties March 2022,12/04/2022,0000477632,"1,931.17",Revenue,FCC Environment Services (UK) Ltd,0
South Ribble Borough Council,http://statistics.data.gov.uk/id/local-authority/30UE,Trade Waste,External Contractors Charges,4570,Commercial Waste Collections March 2022,12/04/2022,0000477632,"7,517.16",Revenue,FCC Environment Services (UK) Ltd,0
South Ribble Borough Council,http://statistics.data.gov.uk/id/local-authority/30UE,Waste Collection,External Contractors Charges,4570,Bulky Waste Collections March 2022,12/04/2022,0000477632,"1,043.40",Revenue,FCC Environment Services (UK) Ltd,0
South Ribble Borough Council,http://statistics.data.gov.uk/id/local-authority/30UE,Waste Collection,External Contractors Charges,4570,WEEE Collections March 2022,12/04/2022,0000477632,392.02,Revenue,FCC Environment Services (UK) Ltd,0
South Ribble Borough Council,http://statistics.data.gov.uk/id/local-authority/30UE,Waste Collection,External Contractors Charges,4570,Clinical Waste Collections March 2022,12/04/2022,0000477632,667.86,Revenue,FCC Environment Services (UK) Ltd,0
South Ribble Borough Council,http://statistics.data.gov.uk/id/local-authority/30UE,Waste Collection,External Contractors Charges,4570,Replacement Bins March 2022,12/04/2022,0000477632,"5,000.00",Revenue,FCC Environment Services (UK) Ltd,0
South Ribble Borough Council,http://statistics.data.gov.uk/id/local-authority/30UE,Waste Collection,External Contractors Charges,4570,Additional properties March 2022,12/04/2022,0000477632,"5,408.15",Revenue,FCC Environment Services (UK) Ltd,0
South Ribble Borough Council,http://statistics.data.gov.uk/id/local-authority/30UE,Short Term Creditors,Amount Paid,0030,retention refuse,12/04/2022,0000477632,"-3,216.37",Revenue,FCC Environment Services (UK) Ltd,0
South Ribble Borough Council,http://statistics.data.gov.uk/id/local-authority/30UE,Short Term Creditors,Amount Paid,0030,ret recy,12/04/2022,0000477632,"-4,218.59",Revenue,FCC Environment Services (UK) Ltd,0
South Ribble Borough Council,http://statistics.data.gov.uk/id/local-authority/30UE,Waste Collection,External Contractors Charges,4570,Additional Clinical Waste Collections March 2022,20/04/2022,0000477860,744.15,Revenue,FCC Environment Services (UK) Ltd,0
South Ribble Borough Council,http://statistics.data.gov.uk/id/local-authority/30UE,Short Term Creditors,Amount Paid,0030,clinical retention,20/04/2022,0000477860,-37.21,Revenue,FCC Environment Services (UK) Ltd,0
South Ribble Borough Council,http://statistics.data.gov.uk/id/local-authority/30UE,Waste Collection,External Contractors Charges,4570,Additional Bulky Collections -  March 2022,20/04/2022,0000477950,"1,351.35",Revenue,FCC Environment Services (UK) Ltd,0
South Ribble Borough Council,http://statistics.data.gov.uk/id/local-authority/30UE,Waste Collection,External Contractors Charges,4570,Additional WEEE Collectionals March 2022,20/04/2022,0000477950,479.52,Revenue,FCC Environment Services (UK) Ltd,0
South Ribble Borough Council,http://statistics.data.gov.uk/id/local-authority/30UE,Short Term Creditors,Amount Paid,0030,retention fee,20/04/2022,0000477950,-91.54,Revenue,FCC Environment Services (UK) Ltd,0
South Ribble Borough Council,http://statistics.data.gov.uk/id/local-authority/30UE,Waste Collection,External Contractors Charges,4570,"Driver Bonus - January, February & March 2022",20/04/2022,0000477995,"7,750.00",Revenue,FCC Environment Services (UK) Ltd,0
South Ribble Borough Council,http://statistics.data.gov.uk/id/local-authority/30UE,Capital,Misc Capital Payments,C234,Single Sign On,27/04/2022,0000474932,"14,375.00",Revenue,FIRMSTEP,0
South Ribble Borough Council,http://statistics.data.gov.uk/id/local-authority/30UE,Central Support Services,Materials General,4040,FOOTBALL PITCH LINE MARKER PAINT 10 LTRS PITCH MARKER Q2,27/04/2022,0000478007,511.68,Revenue,Fleet Line Markers Limited,0
South Ribble Borough Council,http://statistics.data.gov.uk/id/local-authority/30UE,Parking Services,Maintenance & Repair,4013,Repair to King Street carpark pay and display machine (coins dropping through).,27/04/2022,0000477680,683.00,Revenue,Flowbird Smart City UK Ltd,0
South Ribble Borough Council,http://statistics.data.gov.uk/id/local-authority/30UE,Recreation & Sport,Room Hire and Events,4630,Supply of 330 Precision Footballs for Girl`s Football Project.,12/04/2022,0000477716,"1,000.00",Revenue,Galaxy,0
South Ribble Borough Council,http://statistics.data.gov.uk/id/local-authority/30UE,Recreation & Sport,Publicity & Promotion,4842,Supply of 330 Precision Footballs for Girl`s Football Project.,12/04/2022,0000477716,"1,136.75",Revenue,Galaxy,0
South Ribble Borough Council,http://statistics.data.gov.uk/id/local-authority/30UE,Central Support Services,Materials General,4040,1 x hopper lifting ram YD19AUT JFC17627,29/04/2022,0000477607,818.68,Revenue,GEESINK NORBA LTD,0
South Ribble Borough Council,http://statistics.data.gov.uk/id/local-authority/30UE,Central Support Services,Materials General,4040,1 x hopper lift ram YD19AUT JFC17585,29/04/2022,0000477608,813.68,Revenue,GEESINK NORBA LTD,0
South Ribble Borough Council,http://statistics.data.gov.uk/id/local-authority/30UE,Central Support Services,Materials General,4040,1 x filter kit 3 x scraper wires 6 x bearings 3 x bottom blades 39 x blade screws 39 x blade nuts MX19JMO JFC18032,27/04/2022,0000477717,310.78,Revenue,GIBSONS GARDEN MACHINERY LTD,0
South Ribble Borough Council,http://statistics.data.gov.uk/id/local-authority/30UE,Economic Development,Professional Fees,4510,MITP D6 advert preston railway station from march 28th for 4 weeks,12/04/2022,0000477693,"1,820.00",Revenue,Global Media Group Services Ltd,0
South Ribble Borough Council,http://statistics.data.gov.uk/id/local-authority/30UE,Economic Development,Professional Fees,4510,"Music in the Park - Digital Partner Display advertising April, May, June",29/04/2022,0000478130,"2,495.00",Revenue,Global Media Group Services Ltd,0
South Ribble Borough Council,http://statistics.data.gov.uk/id/local-authority/30UE,Corporate Management,Grants Voluntary Organisation,4711,Practical Support Payment - Social Isolation Initiative,20/04/2022,0000477911,"3,000.00",Revenue,Golden Ball of Longton,0
South Ribble Borough Council,http://statistics.data.gov.uk/id/local-authority/30UE,Central Support Services,Reactive Repair & Maintenance,2020,Solar thermal panel and pipework removal Drain the panels and pipework and safely remove the glycol from the solar thermal system ,20/04/2022,0000478020,"4,512.00",Revenue,GOS Heating Ltd,0
South Ribble Borough Council,http://statistics.data.gov.uk/id/local-authority/30UE,Housing Advice,Contributions to Other Bodies,4730,Gas servicing for winter warmth scheme 2022-2023,29/04/2022,0000478156,635.00,Revenue,GOS Heating Ltd,0
South Ribble Borough Council,http://statistics.data.gov.uk/id/local-authority/30UE,Corporate Management,External Audit Fees,4512,2021-22 Audit,27/04/2022,0000477287,"8,455.25",Revenue,Grant Thornton UK LLP,0
South Ribble Borough Council,http://statistics.data.gov.uk/id/local-authority/30UE,Cash and Cash Equivalents,Amount Paid,0030,"Catering for the Mayor`s Spring Banquet, Friday 1st April",27/04/2022,0000477489,"3,987.50",Revenue,High Class Caterers,0
South Ribble Borough Council,http://statistics.data.gov.uk/id/local-authority/30UE,Capital,Capital Grant,C570,DISREPAIR GRANT FOR WORKS AT ADDRESS REDACTED AS PER QUOTE SUPPLIED,27/04/2022,0000478032,"22,037.13",Revenue,Higher End Construction Ltd,0
South Ribble Borough Council,http://statistics.data.gov.uk/id/local-authority/30UE,Short Term Creditors,Amount Received,0140,,12/04/2022,0000477547,531.56,Revenue,HM REVENUE & CUSTOMS,0
South Ribble Borough Council,http://statistics.data.gov.uk/id/local-authority/30UE,Short Term Creditors,Amount Received,0140,,12/04/2022,0000477552,292.00,Revenue,HM REVENUE & CUSTOMS,0
South Ribble Borough Council,http://statistics.data.gov.uk/id/local-authority/30UE,Capital,Cap Contract Payment,C230,payment of SDLT for prop at quin streeet LA910557,27/04/2022,0000478093,"4,075.00",Revenue,HM REVENUE & CUSTOMS,0
South Ribble Borough Council,http://statistics.data.gov.uk/id/local-authority/30UE,Recreation & Sport,Planned Annual Repair & Maintenance,2021,2021/2022 annual contract for gas safety inspections to Penwortham Leisure Centre as per ref ID23472,12/04/2022,0000477690,608.00,Revenue,Hodgkinson Bennis Limited,0
South Ribble Borough Council,http://statistics.data.gov.uk/id/local-authority/30UE,Recreation & Sport,Planned Annual Repair & Maintenance,2021,2021/2022 annual contract for gas safety inspections to South Ribble Tennis Centre as per ref ID23473,12/04/2022,0000477718,760.00,Revenue,Hodgkinson Bennis Limited,0
South Ribble Borough Council,http://statistics.data.gov.uk/id/local-authority/30UE,Recreation & Sport,Planned Annual Repair & Maintenance,2021,2021/2022 annual contract for gas safety inspections to  Leyland Leisure Centre as per ref ID23471,12/04/2022,0000477719,950.00,Revenue,Hodgkinson Bennis Limited,0
South Ribble Borough Council,http://statistics.data.gov.uk/id/local-authority/30UE,Recreation & Sport,Planned Annual Repair & Maintenance,2021,2021/2022 annual contract for gas safety inspections to  Bamber Bridge Leisure Centre as per ref ID23470,12/04/2022,0000477720,608.00,Revenue,Hodgkinson Bennis Limited,0
South Ribble Borough Council,http://statistics.data.gov.uk/id/local-authority/30UE,Payments of Precepts to Parish,Parish Precepts,4870,hutton Parish precepts,20/04/2022,0000478001,"24,500.00",Revenue,HUTTON PARISH COUNCIL,0
South Ribble Borough Council,http://statistics.data.gov.uk/id/local-authority/30UE,Central Support Services,Technical Support,4246,Additional 25 concurrent calls - Ribbon SBC,12/04/2022,0000477794,"1,279.86",Revenue,Hybrit Services Limited,0
South Ribble Borough Council,http://statistics.data.gov.uk/id/local-authority/30UE,Central Support Services,Consultancy Fees,4541,7 Days consultancy,12/04/2022,0000477795,"3,850.00",Revenue,Hybrit Services Limited,0
South Ribble Borough Council,http://statistics.data.gov.uk/id/local-authority/30UE,Economic Development,Computer Software,4242,"End User licence, Annual Inphase maintained Hosted Server service",27/04/2022,0000477855,"2,000.00",Revenue,InPhase Limited,0
South Ribble Borough Council,http://statistics.data.gov.uk/id/local-authority/30UE,Central Support Services,Materials General,4040,QC10 - QUICK SET CONCRETE,27/04/2022,0000478077,"1,367.52",Revenue,INSTARMAC GROUP PLC,0
South Ribble Borough Council,http://statistics.data.gov.uk/id/local-authority/30UE,Capital,Cap Contract Payment,C230,4X Quercus robur RB 8-10cm @ 98.00 each,06/04/2022,0000477626,392.00,Revenue,J A JONES & SONS,0
South Ribble Borough Council,http://statistics.data.gov.uk/id/local-authority/30UE,Capital,Cap Contract Payment,C230,2X Castanea Sativa RB 10-12cm @ 135.00 each,06/04/2022,0000477626,270.00,Revenue,J A JONES & SONS,0
South Ribble Borough Council,http://statistics.data.gov.uk/id/local-authority/30UE,Capital,Cap Contract Payment,C230,Delivery,06/04/2022,0000477626,60.00,Revenue,J A JONES & SONS,0
South Ribble Borough Council,http://statistics.data.gov.uk/id/local-authority/30UE,Capital,Cap Contract Payment,C230,Kingsfold White Garden - Prunus avium Plena,20/04/2022,0000477989,90.00,Revenue,J A JONES & SONS,0
South Ribble Borough Council,http://statistics.data.gov.uk/id/local-authority/30UE,Capital,Cap Contract Payment,C230,Kingsfold Tree Giveaway- Birch,20/04/2022,0000477989,147.00,Revenue,J A JONES & SONS,0
South Ribble Borough Council,http://statistics.data.gov.uk/id/local-authority/30UE,Capital,Cap Contract Payment,C230,Kingsfold Tree Giveaway- Crab Apple,20/04/2022,0000477989,217.50,Revenue,J A JONES & SONS,0
South Ribble Borough Council,http://statistics.data.gov.uk/id/local-authority/30UE,Capital,Cap Contract Payment,C230,Kingsfold Tree Giveaway - Rowan,20/04/2022,0000477989,417.00,Revenue,J A JONES & SONS,0
South Ribble Borough Council,http://statistics.data.gov.uk/id/local-authority/30UE,Capital,Cap Contract Payment,C230,Kingsfold Tree Giveaway - Wild Cherry,20/04/2022,0000477989,330.00,Revenue,J A JONES & SONS,0
South Ribble Borough Council,http://statistics.data.gov.uk/id/local-authority/30UE,Capital,Cap Contract Payment,C230,Kingsfold Tree Giveaway - Hornbeam,20/04/2022,0000477989,490.00,Revenue,J A JONES & SONS,0
South Ribble Borough Council,http://statistics.data.gov.uk/id/local-authority/30UE,Capital,Cap Contract Payment,C230,Kingsfold Tree Giveaway - Beech,20/04/2022,0000477989,490.00,Revenue,J A JONES & SONS,0
South Ribble Borough Council,http://statistics.data.gov.uk/id/local-authority/30UE,Capital,Cap Contract Payment,C230,Kingsfold Tree Giveaway - Field Maple,20/04/2022,0000477989,98.00,Revenue,J A JONES & SONS,0
South Ribble Borough Council,http://statistics.data.gov.uk/id/local-authority/30UE,Capital,Cap Contract Payment,C230,Kingsfold Tree Giveaway - Wild Cherry,20/04/2022,0000477989,98.00,Revenue,J A JONES & SONS,0
South Ribble Borough Council,http://statistics.data.gov.uk/id/local-authority/30UE,Capital,Cap Contract Payment,C230,Kingsfold Tree Giveaway- Guelder Rose,20/04/2022,0000477989,98.00,Revenue,J A JONES & SONS,0
South Ribble Borough Council,http://statistics.data.gov.uk/id/local-authority/30UE,Capital,Cap Contract Payment,C230,Kingsfold Tree Giveaway - Hazel,20/04/2022,0000477989,75.00,Revenue,J A JONES & SONS,0
South Ribble Borough Council,http://statistics.data.gov.uk/id/local-authority/30UE,Capital,Cap Contract Payment,C230,Kingsfold Tree Giveaway - Hawthorn,20/04/2022,0000477989,660.00,Revenue,J A JONES & SONS,0
South Ribble Borough Council,http://statistics.data.gov.uk/id/local-authority/30UE,Capital,Cap Contract Payment,C230,Kingsfold Tree Giveaway- Blackthorn,20/04/2022,0000477989,750.00,Revenue,J A JONES & SONS,0
South Ribble Borough Council,http://statistics.data.gov.uk/id/local-authority/30UE,Capital,Cap Contract Payment,C230,Delivery to Moss Side Depot before the end of February,20/04/2022,0000477989,60.00,Revenue,J A JONES & SONS,0
South Ribble Borough Council,http://statistics.data.gov.uk/id/local-authority/30UE,Capital,Cap Contract Payment,C230,Trees for the tree giveaway,27/04/2022,0000477991,350.00,Revenue,J A JONES & SONS,0
South Ribble Borough Council,http://statistics.data.gov.uk/id/local-authority/30UE,Capital,Cap Contract Payment,C230,Trees for the tree giveaway,29/04/2022,0000478135,"1,260.00",Revenue,J A JONES & SONS,0
South Ribble Borough Council,http://statistics.data.gov.uk/id/local-authority/30UE,Surplus or Deficit on Trading,Reactive Repair & Maintenance,2020,Red frog toilet facilities as per NAME REDACTED. Removal of existing toilets and basins. Supply and installation of 2 close coupled toilets.,29/04/2022,0000478168,"1,150.00",Revenue,J Whittle plumbing & heating,0
South Ribble Borough Council,http://statistics.data.gov.uk/id/local-authority/30UE,Central Support Services,Basic Pay,1100,Recruitment Services: Locum Lawyer � NAME REDACTED,20/04/2022,0000477483,"1,596.00",Revenue,James Andrews Recruitment Solutions Ltd,0
South Ribble Borough Council,http://statistics.data.gov.uk/id/local-authority/30UE,Open Spaces,GM Refurbishment,4657,40T 20mm Grade compost delivered to Worden Park,27/04/2022,0000477677,603.90,Revenue,JOHN COOPER RECYCLING LTD,0
South Ribble Borough Council,http://statistics.data.gov.uk/id/local-authority/30UE,Capital,Cap Contract Payment,C230,Costs for work on the refurbishment of Worden Hall Central Buildings,06/04/2022,0000476868,"125,496.51",Revenue,John Turner Construction Group Ltd,0
South Ribble Borough Council,http://statistics.data.gov.uk/id/local-authority/30UE,Development Control,Advertising,4841,For public notices for planning applications appearing in the LEP,12/04/2022,0000477480,810.00,Revenue,JPI Media - JOHNSTON PUBLISHING (NORTH WEST),0
South Ribble Borough Council,http://statistics.data.gov.uk/id/local-authority/30UE,Corporate Management,Grants Voluntary Organisation,4711,Practical Support Payment - Food and Welfare essentials,20/04/2022,0000477900,"8,500.00",Revenue,KEY UNLOCKING FUTURES LTD,0
South Ribble Borough Council,http://statistics.data.gov.uk/id/local-authority/30UE,Corporate Management,Grants Voluntary Organisation,4711,Practical Support Payment - Food and Welfare essentials,20/04/2022,0000477915,"8,500.00",Revenue,KEY UNLOCKING FUTURES LTD,0
South Ribble Borough Council,http://statistics.data.gov.uk/id/local-authority/30UE,Homelessness,Contributions to Other Bodies,4730,KEY drop in dates 01/04/2022 to 30/06/2022,27/04/2022,0000478169,"7,500.00",Revenue,KEY UNLOCKING FUTURES LTD,0
South Ribble Borough Council,http://statistics.data.gov.uk/id/local-authority/30UE,Community Development,Professional Fees,4510,Football camps for Easter for HAF,27/04/2022,0000478063,"1,728.00",Revenue,Kick On Football Coaching,0
South Ribble Borough Council,http://statistics.data.gov.uk/id/local-authority/30UE,Democratic Represent and  Mgnt,Members Training,1406,NAME REDACTED TO ATTEND EQUALITY AND DIVERSITY IN LOCAL GOVERNMENT CONFERENCE ON 27 APRIL 2022,27/04/2022,0000478148,250.00,Revenue,Knowledge Exchange Group Ltd,0
South Ribble Borough Council,http://statistics.data.gov.uk/id/local-authority/30UE,Open Spaces,GM Refurbishment,4657,x10 Black Swing Seats(A92703-9906) including delivery,27/04/2022,0000478037,277.50,Revenue,KOMPAN LTD,0
South Ribble Borough Council,http://statistics.data.gov.uk/id/local-authority/30UE,Open Spaces,GM Refurbishment,4657,x10 Black Swing Seats(A92703-9906) including delivery,27/04/2022,0000478037,277.50,Revenue,KOMPAN LTD,0
South Ribble Borough Council,http://statistics.data.gov.uk/id/local-authority/30UE,Corporate Management,Grants Voluntary Organisation,4711,Family Mental Health Training - Practical Support Payment,20/04/2022,0000477972,"7,500.00",Revenue,Lancashire Mind Limited,0
South Ribble Borough Council,http://statistics.data.gov.uk/id/local-authority/30UE,Corporate Management,Grants Voluntary Organisation,4711,Adult MH First Aid Training - Practical Support Payment,20/04/2022,0000477973,"14,500.00",Revenue,Lancashire Mind Limited,0
South Ribble Borough Council,http://statistics.data.gov.uk/id/local-authority/30UE,Corporate Management,Grants Voluntary Organisation,4711,NAME REDACTED Mental Health Training - Practical Support Payment,20/04/2022,0000477974,"7,500.00",Revenue,Lancashire Mind Limited,0
South Ribble Borough Council,http://statistics.data.gov.uk/id/local-authority/30UE,Capital,Cap Contract Payment,C230,Section 278 agreement for site at Brindle Road Bamber Bridge - Legal fees 50% on completion,12/04/2022,0000477725,750.00,Revenue,LANCS COUNTY COUNCIL,0
South Ribble Borough Council,http://statistics.data.gov.uk/id/local-authority/30UE,Capital,Cap Contract Payment,C230,Section 278 agreement for site at Brindle Road Bamber Bridge - highways admin fees 50% on completion,12/04/2022,0000477725,625.00,Revenue,LANCS COUNTY COUNCIL,0
South Ribble Borough Council,http://statistics.data.gov.uk/id/local-authority/30UE,Local Land Charges,L C C General,4530,LAND CHARGES - FEBRUARY 2022,12/04/2022,0000477753,620.00,Revenue,LANCS COUNTY COUNCIL,0
South Ribble Borough Council,http://statistics.data.gov.uk/id/local-authority/30UE,Local Land Charges,L C C General,4530,LAND CHARGES - MARCH 2022,27/04/2022,0000478137,787.50,Revenue,LANCS COUNTY COUNCIL,0
South Ribble Borough Council,http://statistics.data.gov.uk/id/local-authority/30UE,Central Support Services,Materials General,4040,Caliper bolt YD19 AUM JFC18241,27/04/2022,0000477975,12.26,Revenue,LANCS DAF,0
South Ribble Borough Council,http://statistics.data.gov.uk/id/local-authority/30UE,Central Support Services,Materials General,4040,Seat actuator YA19 NJZ JFC18214,27/04/2022,0000477975,235.11,Revenue,LANCS DAF,0
South Ribble Borough Council,http://statistics.data.gov.uk/id/local-authority/30UE,Central Support Services,Materials General,4040,2 x Rotary Switch BIN339,27/04/2022,0000477975,157.36,Revenue,LANCS DAF,0
South Ribble Borough Council,http://statistics.data.gov.uk/id/local-authority/30UE,Central Support Services,Materials General,4040,2 set brake pads YA19 NKC JFC18259,29/04/2022,0000478081,280.00,Revenue,LANCS DAF,0
South Ribble Borough Council,http://statistics.data.gov.uk/id/local-authority/30UE,Capital,Cap Contract Payment,C230,"To lay the foundation for the new changing facility at Gregson lane, Hoghton",27/04/2022,0000478138,"3,945.00",Revenue,LANDSCAPE ENGINEERING LIMITED,0
South Ribble Borough Council,http://statistics.data.gov.uk/id/local-authority/30UE,Recycling,Professional Fees,4510,Larac Membership 01/04/2022 - 31/03/2023,27/04/2022,0000478157,445.00,Revenue,LARAC Ltd,0
South Ribble Borough Council,http://statistics.data.gov.uk/id/local-authority/30UE,Democratic Represent and  Mgnt,Corp Subs to Professional Bodies,4720,ANNUAL MEMBERSHIP SUBSCRIPTION RENEWAL 6-10 MEMBERS - 1 APRIL 2022 - 31 MARCH 2023,12/04/2022,0000477767,555.00,Revenue,LAWYERS IN LOCAL GOVERMENT,0
South Ribble Borough Council,http://statistics.data.gov.uk/id/local-authority/30UE,Community Development,Core Fund,4861,"Facilitation, planning and reporting: Broadfield Community Garden Clean-up and Consultation 31/3 and 1/4",12/04/2022,0000477730,"1,200.00",Revenue,Lets Grow Preston,0
South Ribble Borough Council,http://statistics.data.gov.uk/id/local-authority/30UE,Corporate Management,Grants Voluntary Organisation,4711,Practical Support Payment - Food and Welfare essentials,20/04/2022,0000477910,"8,500.00",Revenue,Leyland Food Bank,0
South Ribble Borough Council,http://statistics.data.gov.uk/id/local-authority/30UE,Democratic Represent and  Mgnt,Members Training,1406,NAMES REDACTED TO ATTEND THE 2022 LGA CONFERENCE IN HARROGATE ON 28-30 JUNE 2022,20/04/2022,0000477878,"1,090.00",Revenue,LGA (LOCAL GOVERNMENT ASSOCIATION),0
South Ribble Borough Council,http://statistics.data.gov.uk/id/local-authority/30UE,Payments of Precepts to Parish,Parish Precepts,4870,Little Hoole Parish Precepts,20/04/2022,0000478002,"22,500.00",Revenue,LITTLE HOOLE PARISH COUNCIL,0
South Ribble Borough Council,http://statistics.data.gov.uk/id/local-authority/30UE,Payments of Precepts to Parish,Parish Precepts,4870,Longton Parish Precepts,27/04/2022,0000478003,"116,000.00",Revenue,LONGTON PARISH COUNCIL,0
South Ribble Borough Council,http://statistics.data.gov.uk/id/local-authority/30UE,Corporate Management,Grants Voluntary Organisation,4711,Practical Support Payment - Social Isolation initiative,20/04/2022,0000477909,"3,000.00",Revenue,LOSTOCK HALL JUNIORS FOOTBALL CLUB,0
South Ribble Borough Council,http://statistics.data.gov.uk/id/local-authority/30UE,Central Support Services,Materials General,4040,BLACK SACKS `KEEP SOUTH RIBBLE TIDY` in white 455x760x990-250g Bi Modal Super plus - Keep South Ribble Tidy,27/04/2022,0000477796,"6,420.00",Revenue,MacFarlane Group UK Limited,0
South Ribble Borough Council,http://statistics.data.gov.uk/id/local-authority/30UE,Capital,Capital Grant,C570,DFG WORKS FOR LEVEL ACCESS BATHROOM AT ADDRESS REDACTED. NEW PROGRESS PROPERTY ,06/04/2022,0000477606,"2,939.42",Revenue,MAHONEY CONTRACTORS LTD,0
South Ribble Borough Council,http://statistics.data.gov.uk/id/local-authority/30UE,Parking Services,Materials General,4040,2x GROVE STREET,12/04/2022,0000477801,94.20,Revenue,Main Street Signs Ltd,0
South Ribble Borough Council,http://statistics.data.gov.uk/id/local-authority/30UE,Parking Services,Materials General,4040,2x LANCHESTER COURT T,12/04/2022,0000477801,109.00,Revenue,Main Street Signs Ltd,0
South Ribble Borough Council,http://statistics.data.gov.uk/id/local-authority/30UE,Parking Services,Materials General,4040,2x ST MICHAELS ROAD,12/04/2022,0000477801,100.80,Revenue,Main Street Signs Ltd,0
South Ribble Borough Council,http://statistics.data.gov.uk/id/local-authority/30UE,Parking Services,Materials General,4040,4x STEVENSON AVENUE,12/04/2022,0000477801,206.00,Revenue,Main Street Signs Ltd,0
South Ribble Borough Council,http://statistics.data.gov.uk/id/local-authority/30UE,Parking Services,Materials General,4040,3x GLOUCESTER AVENUE,12/04/2022,0000477801,157.80,Revenue,Main Street Signs Ltd,0
South Ribble Borough Council,http://statistics.data.gov.uk/id/local-authority/30UE,Parking Services,Materials General,4040,2x BRISTOL AVENUE,12/04/2022,0000477801,98.60,Revenue,Main Street Signs Ltd,0
South Ribble Borough Council,http://statistics.data.gov.uk/id/local-authority/30UE,Parking Services,Materials General,4040,2x SPRING CROFT T,12/04/2022,0000477801,100.20,Revenue,Main Street Signs Ltd,0
South Ribble Borough Council,http://statistics.data.gov.uk/id/local-authority/30UE,Parking Services,Materials General,4040,1x ST JUDES AVENUE,12/04/2022,0000477801,49.30,Revenue,Main Street Signs Ltd,0
South Ribble Borough Council,http://statistics.data.gov.uk/id/local-authority/30UE,Parking Services,Materials General,4040,2x ST CHRISTINES AVENUE,12/04/2022,0000477801,109.60,Revenue,Main Street Signs Ltd,0
South Ribble Borough Council,http://statistics.data.gov.uk/id/local-authority/30UE,Parking Services,Materials General,4040,3x STANLEY AVENUE,12/04/2022,0000477801,147.90,Revenue,Main Street Signs Ltd,0
South Ribble Borough Council,http://statistics.data.gov.uk/id/local-authority/30UE,Parking Services,Materials General,4040,1x 1-39 ODD,12/04/2022,0000477801,42.70,Revenue,Main Street Signs Ltd,0
South Ribble Borough Council,http://statistics.data.gov.uk/id/local-authority/30UE,Parking Services,Materials General,4040,2x CARR LANE T,12/04/2022,0000477801,93.60,Revenue,Main Street Signs Ltd,0
South Ribble Borough Council,http://statistics.data.gov.uk/id/local-authority/30UE,Parking Services,Materials General,4040,2x WHEELTON LANE,12/04/2022,0000477801,96.40,Revenue,Main Street Signs Ltd,0
South Ribble Borough Council,http://statistics.data.gov.uk/id/local-authority/30UE,Parking Services,Materials General,4040,DELIVERY CHRAGE,12/04/2022,0000477801,77.00,Revenue,Main Street Signs Ltd,0
South Ribble Borough Council,http://statistics.data.gov.uk/id/local-authority/30UE,Culture & Heritage,Maintenance & Repair,4013,South Ribble Museum Conservation Appraisal,12/04/2022,0000477647,"3,970.00",Revenue,Maybank Buildings Conservation LLP,0
South Ribble Borough Council,http://statistics.data.gov.uk/id/local-authority/30UE,Capital,Capital Grant,C570,DFG WORK FOR ADAPTATION TO CREATE BEDROOM/BATHROOM IN CONSERVATORY AT ADDRESS REDACTED,06/04/2022,0000477604,"4,000.00",Revenue,MBP CONSTRUCTION(NW) LTD,0
South Ribble Borough Council,http://statistics.data.gov.uk/id/local-authority/30UE,Open Spaces,GM Refurbishment,4657,"To pick up 40T Soil Improver from John Cooper Recycling and deliver to a small park(with playground) at Bellis Way, Walton Park, PR5 5QU",27/04/2022,0000477679,600.00,Revenue,Michael Alty,0
South Ribble Borough Council,http://statistics.data.gov.uk/id/local-authority/30UE,Surplus or Deficit on Trading,Reactive Repair & Maintenance,2020,Gate house wordon park.Erect Scaffolding Replace all gutters and down pipes in cast iron. As per est 1164 and NAME REDACTED,06/04/2022,0000477619,"3,100.00",Revenue,Mick Bamber,0
South Ribble Borough Council,http://statistics.data.gov.uk/id/local-authority/30UE,Central Support Services,Kennelling Fees,4521,Provision of Stray Dog Service January 2022,12/04/2022,0000477762,286.03,Revenue,MORNINGSIDE KENNELS,0
South Ribble Borough Council,http://statistics.data.gov.uk/id/local-authority/30UE,Central Support Services,Kennelling Fees,4521,Provision of Stray Dog Service December 2021,12/04/2022,0000477763,512.28,Revenue,MORNINGSIDE KENNELS,0
South Ribble Borough Council,http://statistics.data.gov.uk/id/local-authority/30UE,Central Support Services,Kennelling Fees,4521,Provision of Stray Dog Service February 2022,12/04/2022,0000477764,311.67,Revenue,MORNINGSIDE KENNELS,0
South Ribble Borough Council,http://statistics.data.gov.uk/id/local-authority/30UE,Central Support Services,Short Course,1402,4 MEMBERS OF STAFF TO ATTEND BRUSHWOOD CHIPPER COURSE ON 14/15 FEBRUARY 2022,12/04/2022,0000476546,560.00,Revenue,Morton Training Limited,0
South Ribble Borough Council,http://statistics.data.gov.uk/id/local-authority/30UE,Central Support Services,External Contractors Charges,4570,Additional Inspection Items - assorted workshop equipment,27/04/2022,0000477732,330.00,Revenue,MRB Workshop Services Ltd,0
South Ribble Borough Council,http://statistics.data.gov.uk/id/local-authority/30UE,Capital,Capital Grant,C570,DFG WORK FOR ADAPTATION FOR BATHROOM AT ADDRESS REDACTED ,12/04/2022,0000477879,"4,988.00",Revenue,MSG Building and Construction Ltd,0
South Ribble Borough Council,http://statistics.data.gov.uk/id/local-authority/30UE,Payments of Precepts to Parish,Parish Precepts,4870,Much hoole parish precept,20/04/2022,0000478004,"18,450.00",Revenue,MUCH HOOLE PARISH COUNCIL,0
South Ribble Borough Council,http://statistics.data.gov.uk/id/local-authority/30UE,Central Support Services,External Contractors Charges,4570,Labour only to overhall back end operation YD19 AYK JFC 18184,27/04/2022,0000477917,"3,191.25",Revenue,Municipal Vehicle Services,0
South Ribble Borough Council,http://statistics.data.gov.uk/id/local-authority/30UE,Central Support Services,Software Licensing,4243,Capital licence for 200 users ,27/04/2022,0000476218,"5,165.02",Revenue,NEC Software Solutions UK Ltd,0
South Ribble Borough Council,http://statistics.data.gov.uk/id/local-authority/30UE,Corporate Management,Grants Voluntary Organisation,4711,Practical Support Payment - Food and Welfare essentials,20/04/2022,0000477908,"8,500.00",Revenue,New Day Church,0
South Ribble Borough Council,http://statistics.data.gov.uk/id/local-authority/30UE,Corporate Management,Grants Voluntary Organisation,4711,Community Cafes and beareavement support - Practical Support Payment,20/04/2022,0000477907,"5,000.00",Revenue,New Friends For You,0
South Ribble Borough Council,http://statistics.data.gov.uk/id/local-authority/30UE,Capital,Cap Contract Payment,C230,Visualisations - West Paddock (Extra Care Scheme),20/04/2022,0000477948,"4,500.00",Revenue,NORR Consultants Limited,0
South Ribble Borough Council,http://statistics.data.gov.uk/id/local-authority/30UE,Central Support Services,Corp Subs to Professional Bodies,4720,Full Membership to Northern Housing Consortium for the period 01.04.22 to 31.03.23,27/04/2022,0000478133,990.00,Revenue,NORTHERN HOUSING CONSORTIUM,0
South Ribble Borough Council,http://statistics.data.gov.uk/id/local-authority/30UE,Central Support Services,Reactive Repair & Maintenance,2020,Supply and fit a new cage to the grounds workshop at Moss Side Depot as detailed in your quotation ref QU000312,12/04/2022,0000477733,"3,800.00",Revenue,Northern Storage & Interiors Ltd,0
South Ribble Borough Council,http://statistics.data.gov.uk/id/local-authority/30UE,Recreation & Sport,Electricity,2303,1/3 to 31/3/22,12/04/2022,0000477815,"3,079.83",Revenue,NPOWER Business,0
South Ribble Borough Council,http://statistics.data.gov.uk/id/local-authority/30UE,Recreation & Sport,Electricity,2303,1/3 to 31/3/22,12/04/2022,0000477816,"3,298.18",Revenue,NPOWER Business,0
South Ribble Borough Council,http://statistics.data.gov.uk/id/local-authority/30UE,Recreation & Sport,Electricity,2303,1/3 to 31/3/22,12/04/2022,0000477820,"5,233.21",Revenue,NPOWER Business,0
South Ribble Borough Council,http://statistics.data.gov.uk/id/local-authority/30UE,Recreation & Sport,Electricity,2303,1/3 to 31/3/22,29/04/2022,0000478084,"3,460.31",Revenue,NPOWER Business,0
South Ribble Borough Council,http://statistics.data.gov.uk/id/local-authority/30UE,Parking Services,Parking Attendants,4514,Variable Fee Car Park Enforcement March 2022 - Variable Recharge Items,27/04/2022,0000478053,"1,500.00",Revenue,NSL LTD,0
South Ribble Borough Council,http://statistics.data.gov.uk/id/local-authority/30UE,Parking Services,Cash Collection Charges Car Parks,4855,Variable Fee Car Park Enforcement March 2022 - Fixed Recharge Items,27/04/2022,0000478053,670.42,Revenue,NSL LTD,0
South Ribble Borough Council,http://statistics.data.gov.uk/id/local-authority/30UE,Central Support Services,Network and Security,4247,2 days Firewall Consultancy,29/04/2022,0000478136,250.00,Revenue,NVIRON LTD,0
South Ribble Borough Council,http://statistics.data.gov.uk/id/local-authority/30UE,Open Spaces,Plants Trees & Shrubs,4046,"Wildflower Seeds 36kg Rainbow Annuals, 3kg Flora Britannica, 4kg Euroflor Classic, 5kg Flora Native Restore and Enrich",27/04/2022,0000477678,"8,754.07",Revenue,Origin Amenity Solutions,0
South Ribble Borough Council,http://statistics.data.gov.uk/id/local-authority/30UE,Central Support Services,College Course,1403,FEES FOR NAME REDACTED CIPS LEVEL 5 QUALIFICATION COURSE,12/04/2022,0000476784,"1,440.00",Revenue,OXFORD PROFESSIONAL EDUCATIONGROUP,0
South Ribble Borough Council,http://statistics.data.gov.uk/id/local-authority/30UE,Central Support Services,College Course,1403,CIPS EXAM FEES FOR NAME REDACTED- L5M2,12/04/2022,0000477805,100.00,Revenue,OXFORD PROFESSIONAL EDUCATIONGROUP,0
South Ribble Borough Council,http://statistics.data.gov.uk/id/local-authority/30UE,Central Support Services,College Course,1403,CIPS EXAM FEES FOR NAME REDACTED - L5M3,12/04/2022,0000477805,100.00,Revenue,OXFORD PROFESSIONAL EDUCATIONGROUP,0
South Ribble Borough Council,http://statistics.data.gov.uk/id/local-authority/30UE,Central Support Services,College Course,1403,CIPS EXAM FEES FOR NAME REDACTED - L5M5,12/04/2022,0000477805,100.00,Revenue,OXFORD PROFESSIONAL EDUCATIONGROUP,0
South Ribble Borough Council,http://statistics.data.gov.uk/id/local-authority/30UE,Central Support Services,College Course,1403,CIPS EXAM FEES FOR NAME REDACTED - L5M7,12/04/2022,0000477805,100.00,Revenue,OXFORD PROFESSIONAL EDUCATIONGROUP,0
South Ribble Borough Council,http://statistics.data.gov.uk/id/local-authority/30UE,Parking Services,Cash Collection Charges Car Parks,4855,RingGo Fee Transactions - March 2022,27/04/2022,0000478052,87.75,Revenue,Park Now Limited,0
South Ribble Borough Council,http://statistics.data.gov.uk/id/local-authority/30UE,Parking Services,Cash Collection Charges Car Parks,4855,"RingGo Text Summary, Reminder & Processing Fees - March 2022",27/04/2022,0000478052,172.89,Revenue,Park Now Limited,0
South Ribble Borough Council,http://statistics.data.gov.uk/id/local-authority/30UE,Surplus or Deficit on Trading,Reactive Repair & Maintenance,2020,Please undertake works to the pathway at Worden park as detailed in your quotation ref QU-0554,12/04/2022,0000477859,"7,519.00",Revenue,PDP PROPERTY SERVICES LTD,0
South Ribble Borough Council,http://statistics.data.gov.uk/id/local-authority/30UE,Surplus or Deficit on Trading,Reactive Repair & Maintenance,2020,Please undertake works to pavilion 6 Worden park changing rooms as detailed in your quotation ref QU - 0553,12/04/2022,0000477863,"3,760.00",Revenue,PDP PROPERTY SERVICES LTD,0
South Ribble Borough Council,http://statistics.data.gov.uk/id/local-authority/30UE,Community Development,Professional Fees,4510,Penwortham Boxing Camps for Easter,27/04/2022,0000478067,"1,920.00",Revenue,Penwortham Boxing Club CIC,0
South Ribble Borough Council,http://statistics.data.gov.uk/id/local-authority/30UE,Corporate Management,Grants Voluntary Organisation,4711,Practical Support Payment - Food and Welfare essentials,20/04/2022,0000477906,"8,500.00",Revenue,Penwortham Churches Together Foodbank,0
South Ribble Borough Council,http://statistics.data.gov.uk/id/local-authority/30UE,Payments of Precepts to Parish,Parish Precepts,4870,Penwortham Parish Precepts,27/04/2022,0000478005,"190,000.00",Revenue,PENWORTHAM TOWN COUNCIL,0
South Ribble Borough Council,http://statistics.data.gov.uk/id/local-authority/30UE,Regulatory Services,Professional Fees,4510,Consultancy Services - per NAME REDACTED,29/04/2022,0000478129,"66,842.28",Revenue,Perfect Circle JV Ltd,0
South Ribble Borough Council,http://statistics.data.gov.uk/id/local-authority/30UE,Regulatory Services,Professional Fees,4510,Consultancy Services - per NAME REDACTED,29/04/2022,0000478173,"98,253.53",Revenue,Perfect Circle JV Ltd,0
South Ribble Borough Council,http://statistics.data.gov.uk/id/local-authority/30UE,Recycling,Contract Printing,4127,Provision and posting of Garden Waste permits 2022 and hosting of permit management website.,06/04/2022,0000477692,"9,039.04",Revenue,Permiserv Ltd,0
South Ribble Borough Council,http://statistics.data.gov.uk/id/local-authority/30UE,Regulatory Services,Disclosure Barring,4522,gov fee,12/04/2022,0000477751,400.00,Revenue,Personnel Checks,0
South Ribble Borough Council,http://statistics.data.gov.uk/id/local-authority/30UE,Regulatory Services,Disclosure Barring,4522,admin fee,12/04/2022,0000477751,133.30,Revenue,Personnel Checks,0
South Ribble Borough Council,http://statistics.data.gov.uk/id/local-authority/30UE,Parking Services,Materials General,4040,6No 3050X2050 6MM Clear Polycarb,27/04/2022,0000477791,"1,255.34",Revenue,Perspex Distribution Ltd,0
South Ribble Borough Council,http://statistics.data.gov.uk/id/local-authority/30UE,Local Land Charges,Refunded Income,485R,Refund on monies for overpayment of 18 searches,20/04/2022,0000477891,261.00,Revenue,PHOENIX SEARCHES LTD,0
South Ribble Borough Council,http://statistics.data.gov.uk/id/local-authority/30UE,Central Support Services,Software Licensing,4243,Citrix Virtual Apps and Desktops Service Premium User/Device - Licence. Citrix Virtual Apps and Desktops Service Premium User/Device Licence,27/04/2022,0000477421,"28,224.00",Revenue,PHOENIX SOFTWARE LTD,0
South Ribble Borough Council,http://statistics.data.gov.uk/id/local-authority/30UE,Culture & Heritage,Operational Equip & Tools,4010,"Buffered Acid-Free Tissue Paper, 1 Pkg 100 PPU, Buffered Acid-Free Tissue Paper, 3 Pkg 100 Quantity: 3 PPU, Brush Natural Hair, 1 Each PPU",27/04/2022,0000478079,"1,058.05",Revenue,Preservation Equipment Ltd,0
South Ribble Borough Council,http://statistics.data.gov.uk/id/local-authority/30UE,Elections,Polling Centre Costs,4421,Samlesbury & Cuerdale Parish Poll - Ballot Books (8 ordinary/2 tendered) as per job ID 9383,20/04/2022,0000477893,766.00,Revenue,PRINT IMAGE NETWORK LTD,0
South Ribble Borough Council,http://statistics.data.gov.uk/id/local-authority/30UE,Elections,Polling Card Costs,4423,EARNSHAW BRIDGE BY-ELECTION - POLL CARDS - QUANTITY 3533 QUOTATION REF: C6278,20/04/2022,0000477997,"1,276.00",Revenue,PRINT IMAGE NETWORK LTD,0
South Ribble Borough Council,http://statistics.data.gov.uk/id/local-authority/30UE,Elections,Contract Printing,4127,2022 PI Refresh exercise (job 8999) Mailing 1 (January 2022) Initial letter - approx. 2141 records,27/04/2022,0000478141,"1,714.19",Revenue,PRINT IMAGE NETWORK LTD,0
South Ribble Borough Council,http://statistics.data.gov.uk/id/local-authority/30UE,Elections,Contract Printing,4127,Mailing 2 (February 2022) Reminder letter - approx. 1100 records,27/04/2022,0000478141,586.71,Revenue,PRINT IMAGE NETWORK LTD,0
South Ribble Borough Council,http://statistics.data.gov.uk/id/local-authority/30UE,Elections,Contract Printing,4127,Mailing 3 (March 2022) Cancellation letter - approx. 560 records,27/04/2022,0000478141,286.10,Revenue,PRINT IMAGE NETWORK LTD,0
South Ribble Borough Council,http://statistics.data.gov.uk/id/local-authority/30UE,Homelessness,Contributions to Other Bodies,4730,NAME REDACTED clear rent arrears at ADDRESS REDACTED,20/04/2022,0000477977,"1,438.70",Revenue,PROGRESS HOUSING GRP ref:DNSOU001,0
South Ribble Borough Council,http://statistics.data.gov.uk/id/local-authority/30UE,Open Spaces,GM Refurbishment,4657,Quotation Reference J2810 Picnic table Sept 2021. ,20/04/2022,0000472999,756.13,Revenue,PROLUDIC LTD,0
South Ribble Borough Council,http://statistics.data.gov.uk/id/local-authority/30UE,Capital,Cap Contract Payment,C230,"Retention for the design and build of new toddler playground, Bellis Way, Walton-le-Dale",27/04/2022,0000478043,"1,249.98",Revenue,PROLUDIC LTD,0
South Ribble Borough Council,http://statistics.data.gov.uk/id/local-authority/30UE,Homelessness,Temporary Accommodation,5311,NAME REDACTED 01/03/2022-31/03/2022,12/04/2022,0000477736,"1,500.00",Revenue,Purpleroomz,0
South Ribble Borough Council,http://statistics.data.gov.uk/id/local-authority/30UE,Homelessness,Contributions to Other Bodies,4730,NAME REDACTED 01/03/2022-28/03/2022 ,12/04/2022,0000477736,"1,350.00",Revenue,Purpleroomz,0
South Ribble Borough Council,http://statistics.data.gov.uk/id/local-authority/30UE,Homelessness,Contributions to Other Bodies,4730,"2x block booked rooms, 29 nights from 31/03/2022 - 29/04/2022",20/04/2022,0000477978,"2,900.00",Revenue,Purpleroomz,0
South Ribble Borough Council,http://statistics.data.gov.uk/id/local-authority/30UE,Homelessness,Temporary Accommodation,5311,NAME REDACTED 29 nights 31/03/2022 - 29/04/2022,20/04/2022,0000477978,"1,392.00",Revenue,Purpleroomz,0
South Ribble Borough Council,http://statistics.data.gov.uk/id/local-authority/30UE,Homelessness,Temporary Accommodation,5311,NAME REDACTED 35 nights 25/03/2022 - 29/04/2022,20/04/2022,0000477978,"1,680.00",Revenue,Purpleroomz,0
South Ribble Borough Council,http://statistics.data.gov.uk/id/local-authority/30UE,Homelessness,Temporary Accommodation,5311,NAME REDACTED 01/04/2022 - 22/04/2022,20/04/2022,0000477978,"1,050.00",Revenue,Purpleroomz,0
South Ribble Borough Council,http://statistics.data.gov.uk/id/local-authority/30UE,Homelessness,Temporary Accommodation,5311,NAME REDACTED 8 nights 31/03/2022 - 08/04/2022,20/04/2022,0000477978,384.00,Revenue,Purpleroomz,0
South Ribble Borough Council,http://statistics.data.gov.uk/id/local-authority/30UE,Central Support Services,Computer Maintenance,4211,System rental and Communications Charge - 60 vehicles for 3 months 1.4.22 - 30.6.22,27/04/2022,0000477737,"2,070.00",Revenue,Quartix,0
South Ribble Borough Council,http://statistics.data.gov.uk/id/local-authority/30UE,Capital,Cap Contract Payment,C230,"Alteration & Refurbishment Works - Hurst Grange Coach House, Penwortham.",06/04/2022,0000477583,"2,775.89",Revenue,R Developments Ltd T/A Rosslee Construction Ltd,0
South Ribble Borough Council,http://statistics.data.gov.uk/id/local-authority/30UE,Central Support Services,External Contractors Charges,4570,VIN REDACTED - Car/Van Roadside and At Home & Recovery 31.3.22 - 30.3.24,12/04/2022,0000477765,163.00,Revenue,RAC Motoring Services,0
South Ribble Borough Council,http://statistics.data.gov.uk/id/local-authority/30UE,Central Support Services,External Contractors Charges,4570,VIN REDACTED  - Car/Van Roadside and At Home & Recovery 31.3.22 - 30.3.24,12/04/2022,0000477765,163.00,Revenue,RAC Motoring Services,0
South Ribble Borough Council,http://statistics.data.gov.uk/id/local-authority/30UE,Central Support Services,External Contractors Charges,4570,VIN REDACTED  - Car/Van Roadside and At Home & Recovery 31.3.22 - 30.3.24,12/04/2022,0000477765,163.00,Revenue,RAC Motoring Services,0
South Ribble Borough Council,http://statistics.data.gov.uk/id/local-authority/30UE,Central Support Services,External Contractors Charges,4570,VIN REDACTED  - Car/Van Roadside and At Home & Recovery 31.3.22 - 30.3.24,12/04/2022,0000477765,163.00,Revenue,RAC Motoring Services,0
South Ribble Borough Council,http://statistics.data.gov.uk/id/local-authority/30UE,Open Spaces,Hiring Expenses,3212,Hire of 3T Excavator and 2T Dumper to be delivered to the depot at Worden Park on Monday morning. 21st March - 25th March,12/04/2022,0000477749,541.00,Revenue,Readyplant Limited,0
South Ribble Borough Council,http://statistics.data.gov.uk/id/local-authority/30UE,Open Spaces,Hiring Expenses,3212,fuel,12/04/2022,0000477749,23.40,Revenue,Readyplant Limited,0
South Ribble Borough Council,http://statistics.data.gov.uk/id/local-authority/30UE,Open Spaces,Hiring Expenses,3212,Hire of a 3T excavator 31/03/2022,29/04/2022,0000478154,135.00,Revenue,Readyplant Limited,0
South Ribble Borough Council,http://statistics.data.gov.uk/id/local-authority/30UE,Open Spaces,Hiring Expenses,3212,Hire of a 2T Dumper 31/03/2022,29/04/2022,0000478154,60.00,Revenue,Readyplant Limited,0
South Ribble Borough Council,http://statistics.data.gov.uk/id/local-authority/30UE,Open Spaces,Hiring Expenses,3212,Delivery and Collection,29/04/2022,0000478154,100.00,Revenue,Readyplant Limited,0
South Ribble Borough Council,http://statistics.data.gov.uk/id/local-authority/30UE,Open Spaces,Hiring Expenses,3212,fuel charges,29/04/2022,0000478154,53.20,Revenue,Readyplant Limited,0
South Ribble Borough Council,http://statistics.data.gov.uk/id/local-authority/30UE,Open Spaces,External Contractors Charges,4570,"Drain Jetting at Farmyard Cottages, Worden Park",27/04/2022,0000478024,250.00,Revenue,RED ROSE BUILDING MAINTENANCE,0
South Ribble Borough Council,http://statistics.data.gov.uk/id/local-authority/30UE,Central Support Services,Materials General,4040,Parts to overhall back end opertation  YD19 AYK JFC 18184,27/04/2022,0000477627,"3,992.34",Revenue,Refuse Vehicle Parts,0
South Ribble Borough Council,http://statistics.data.gov.uk/id/local-authority/30UE,Central Support Services,Materials General,4040,Parts to overhall back end opertation  YD19 AYK JFC 18184,27/04/2022,0000477758,525.67,Revenue,Refuse Vehicle Parts,0
South Ribble Borough Council,http://statistics.data.gov.uk/id/local-authority/30UE,Tourism,Fuel Oil,2301,"1,000 litres  of kerosene to Worden Park PR5 1DJ ",12/04/2022,0000477904,970.00,Revenue,RIBBLE FUEL OILS,0
South Ribble Borough Council,http://statistics.data.gov.uk/id/local-authority/30UE,Development Control,Consultancy Fees,4541,"Pickering Farm Planning Application and appeal, Professional consultancy services October-November 2021, 10 hours",12/04/2022,0000477800,"1,100.00",Revenue,Richard Wood Associates Limited,0
South Ribble Borough Council,http://statistics.data.gov.uk/id/local-authority/30UE,Central Support Services,Photocopier Lease Rental,4036,EQV5,27/04/2022,0000476735,"9,969.58",Revenue,RICOH (UK) LTD,0
South Ribble Borough Council,http://statistics.data.gov.uk/id/local-authority/30UE,Elections,Postal Voting Costs,4422,"BBE BY-ELECTION (18.11.2021) POSTAL VOTE RETURNS, TIMED DELIVERY, ADDITIONAL SELECTIONS, LICENCE FEE",12/04/2022,0000477814,879.36,Revenue,ROYAL MAIL GROUP PLC,0
South Ribble Borough Council,http://statistics.data.gov.uk/id/local-authority/30UE,Capital,Cap Contract Payment,C230,"McKenzie Arms, Bamber Bridge (Housing Development)",12/04/2022,0000477698,"171,486.40",Revenue,RP Tyson Construction Ltd,0
South Ribble Borough Council,http://statistics.data.gov.uk/id/local-authority/30UE,Capital,Cap Contract Payment,C230,"McKenzie Arms, Bamber Bridge (Housing Development)",12/04/2022,0000477803,"120,391.82",Revenue,RP Tyson Construction Ltd,0
South Ribble Borough Council,http://statistics.data.gov.uk/id/local-authority/30UE,Capital Grants & Contributions,Amount Paid,0030,community inf PO outside the finacail year line copied,20/04/2022,0000477925,"2,999.49",Revenue,SAMLESBURY & CUERDALE PARISH COUNCIL,0
South Ribble Borough Council,http://statistics.data.gov.uk/id/local-authority/30UE,Payments of Precepts to Parish,Parish Precepts,4870,Salmesbury and Cuerdale Parish,20/04/2022,0000477999,"8,190.00",Revenue,SAMLESBURY & CUERDALE PARISH COUNCIL,0
South Ribble Borough Council,http://statistics.data.gov.uk/id/local-authority/30UE,Central Support Services,Materials General,4040,Fuel Tank JFC 18220 GL70 SVY,27/04/2022,0000477850,511.52,Revenue,Scarab Sweepers Ltd,0
South Ribble Borough Council,http://statistics.data.gov.uk/id/local-authority/30UE,Central Support Services,Materials General,4040,Carriage Charge,27/04/2022,0000477850,109.00,Revenue,Scarab Sweepers Ltd,0
South Ribble Borough Council,http://statistics.data.gov.uk/id/local-authority/30UE,Central Support Services,Materials General,4040,"1x windscreen, GL70 SVY, JFC18120 NAME REDACTED",27/04/2022,0000477851,942.14,Revenue,Scarab Sweepers Ltd,0
South Ribble Borough Council,http://statistics.data.gov.uk/id/local-authority/30UE,Capital,Cap Contract Payment,C230,RIBA Stage 3 - Extra Care Project (West Paddock),06/04/2022,0000477633,"3,706.00",Revenue,SDA Consulting LLP,0
South Ribble Borough Council,http://statistics.data.gov.uk/id/local-authority/30UE,Central Support Services,Agency Staff,1121,COST OF ENGAGING AGENCY LOCUM SOLICITOR FOR 4 DAYS PER WEEK FROM 7 SEPTEMBER 2021 UNTIL CHRISTMAS 2021,06/04/2022,0000477628,"1,553.25",Revenue,SELLICK PARTNERSHIP LTD,0
South Ribble Borough Council,http://statistics.data.gov.uk/id/local-authority/30UE,Central Support Services,Agency Staff,1121,COST OF ENGAGING AGENCY LOCUM SOLICITOR FRO 4 DAYS PER WEEK - EXTENDED TO 15 APRIL 2022,20/04/2022,0000477996,"2,208.18",Revenue,SELLICK PARTNERSHIP LTD,0
South Ribble Borough Council,http://statistics.data.gov.uk/id/local-authority/30UE,Central Support Services,Agency Staff,1121,COST OF ENGAGING AGENCY LOCUM SOLICITOR FRO 4 DAYS PER WEEK - EXTENDED TO 15 APRIL 2022,27/04/2022,0000478142,"1,809.75",Revenue,SELLICK PARTNERSHIP LTD,0
South Ribble Borough Council,http://statistics.data.gov.uk/id/local-authority/30UE,Community Development,Core Fund,4861,To provide a total of 19 banners as discussed and agreed and designs sent and delivery of all to Civic Centre,12/04/2022,0000477602,79.80,Revenue,SIGNCRAFT,0
South Ribble Borough Council,http://statistics.data.gov.uk/id/local-authority/30UE,Community Development,Core Fund,4861,To provide a total of 19 banners as discussed and agreed and designs sent and delivery of all to Civic Centre,12/04/2022,0000477602,155.85,Revenue,SIGNCRAFT,0
South Ribble Borough Council,http://statistics.data.gov.uk/id/local-authority/30UE,Community Development,Core Fund,4861,To provide a total of 19 banners as discussed and agreed and designs sent and delivery of all to Civic Centre,12/04/2022,0000477602,130.50,Revenue,SIGNCRAFT,0
South Ribble Borough Council,http://statistics.data.gov.uk/id/local-authority/30UE,Community Development,Core Fund,4861,To provide a total of 19 banners as discussed and agreed and designs sent and delivery of all to Civic Centre,12/04/2022,0000477602,130.50,Revenue,SIGNCRAFT,0
South Ribble Borough Council,http://statistics.data.gov.uk/id/local-authority/30UE,Capital,Cap Contract Payment,C230,Leyland Town Deal - Ecology Survey,20/04/2022,0000477403,"1,900.00",Revenue,Simply Ecology Limited,0
South Ribble Borough Council,http://statistics.data.gov.uk/id/local-authority/30UE,Capital,Cap Contract Payment,C230,"Refurbishment to the existing cricket pavilion, refurbish cricket changing facility at Vernon Carus Site as per NAMES REDACTED",06/04/2022,0000477325,"37,100.00",Revenue,SJJ Contracts Limited,0
South Ribble Borough Council,http://statistics.data.gov.uk/id/local-authority/30UE,Capital,Cap Contract Payment,C230,Labour,06/04/2022,0000477325,"15,901.00",Revenue,SJJ Contracts Limited,0
South Ribble Borough Council,http://statistics.data.gov.uk/id/local-authority/30UE,Corporate Management,Grants Voluntary Organisation,4711,Practical Support Payment - Food and Welfare essentials,20/04/2022,0000477899,"8,500.00",Revenue,SLEAP,0
South Ribble Borough Council,http://statistics.data.gov.uk/id/local-authority/30UE,Central Support Services,Clothing and Uniforms,4410,BODYWARMER - WROXHAM  FORTRESS- EXTRA LARGE c/w SRBC  Logo Front Left Breast in White EMB WM-WROX,27/04/2022,0000477882,53.76,Revenue,SMART IMAGE WORKWEAR,0
South Ribble Borough Council,http://statistics.data.gov.uk/id/local-authority/30UE,Central Support Services,Clothing and Uniforms,4410,BOOTS � ROCKFALL EBONITE - SIZE 11 RF -EBONITE,27/04/2022,0000477882,104.70,Revenue,SMART IMAGE WORKWEAR,0
South Ribble Borough Council,http://statistics.data.gov.uk/id/local-authority/30UE,Central Support Services,Clothing and Uniforms,4410,BOOTS � ROCKFALL EBONITE - SIZE 10 RF -EBONITE,27/04/2022,0000477882,104.70,Revenue,SMART IMAGE WORKWEAR,0
South Ribble Borough Council,http://statistics.data.gov.uk/id/local-authority/30UE,Central Support Services,Clothing and Uniforms,4410,3M PELTOR OPTINME II EAR DEFENDER 3M OPTIME II,27/04/2022,0000477882,56.64,Revenue,SMART IMAGE WORKWEAR,0
South Ribble Borough Council,http://statistics.data.gov.uk/id/local-authority/30UE,Central Support Services,Software Licensing,4243,9 Acrobat Pro DC for Teams New Licence - 1 Month - VIP licence,29/04/2022,0000478158,868.50,Revenue,SOFTCAT LIMITED,0
South Ribble Borough Council,http://statistics.data.gov.uk/id/local-authority/30UE,Short Term Creditors,Amount Paid,0030,monthly deductions,12/04/2022,0000477707,"1,335.78",Revenue,SOUTH RIBBLE LABOUR PARTY LOCAL GOVERNM,0
South Ribble Borough Council,http://statistics.data.gov.uk/id/local-authority/30UE,Short Term Creditors,Amount Paid,0030,Monthly Deds from Payroll,12/04/2022,0000477662,386.26,Revenue,ST CATHERINES HOSPICE PROMOTIONS LTD,0
South Ribble Borough Council,http://statistics.data.gov.uk/id/local-authority/30UE,Corporate Management,Grants Voluntary Organisation,4711,Practical Support Payment,20/04/2022,0000478006,"3,500.00",Revenue,St James Church c/o Mr A Croft,0
South Ribble Borough Council,http://statistics.data.gov.uk/id/local-authority/30UE,Community Development,Core Fund,4861,Commercial Dishwasher,27/04/2022,0000478176,"2,500.00",Revenue,St Mary`s Community Centre,0
South Ribble Borough Council,http://statistics.data.gov.uk/id/local-authority/30UE,Service Management & Support,Diesel Fuel,3132,"17,000 Litres of Diesel into the feeder tank at Unit 81 Bison Place, Moss Side",27/04/2022,0000477617,"24,339.66",Revenue,Standard Fuel Oils LtdMain,0
South Ribble Borough Council,http://statistics.data.gov.uk/id/local-authority/30UE,Service Management & Support,Diesel Fuel,3132,"16,000 Litres of Diesel into the feeder tank at Unit 81 Bison Place, Moss Side",29/04/2022,0000478011,"21,785.11",Revenue,Standard Fuel Oils LtdMain,0
South Ribble Borough Council,http://statistics.data.gov.uk/id/local-authority/30UE,Service Management & Support,Gas Oil,3134,1500ltr gas oil  into tank 2,27/04/2022,0000478012,"1,432.01",Revenue,Standard Fuel Oils LtdMain,0
South Ribble Borough Council,http://statistics.data.gov.uk/id/local-authority/30UE,Capital,Capital Grant,C570,DFG WORK TO SUPPLY AND INSTALL A STAIRLIFT AT ADDRESS REDACTED AS PER QUOTE ,06/04/2022,0000477739,"5,029.00",Revenue,Stannah Lift Services Ltd,0
South Ribble Borough Council,http://statistics.data.gov.uk/id/local-authority/30UE,Central Support Services,Mobile Devices Hardware,4244,Logitech Combo Touch Keyboard & Folio Case - iPad Pro 12.9'',12/04/2022,0000477756,286.00,Revenue,Starcom Technologies,0
South Ribble Borough Council,http://statistics.data.gov.uk/id/local-authority/30UE,Central Support Services,Computer Equipment,4241,"2x iPad Pro 12.9'' WiFi/Cellular - 128Gb - Space Grey, 2x Logitech Combo Touch Keyboard & Folio Case - iPad Pro 12.9''",12/04/2022,0000477848,"2,154.00",Revenue,Starcom Technologies,0
South Ribble Borough Council,http://statistics.data.gov.uk/id/local-authority/30UE,Community Development,Miscellaneous Expenses,4851,"2 x iPad Air WiFi/Cellular 64Gb - Space Grey, 2 xLogitech Combo Touch Keyboard/ Folio Case - iPad Air 4th Gen ",12/04/2022,0000477849,"1,360.00",Revenue,Starcom Technologies,0
South Ribble Borough Council,http://statistics.data.gov.uk/id/local-authority/30UE,Central Support Services,Computer Equipment,4241,"1x Pronto100 printer, 1x MANHATTAN USB-A SOUND ADAPTER",29/04/2022,0000478131,808.00,Revenue,Starcom Technologies,0
South Ribble Borough Council,http://statistics.data.gov.uk/id/local-authority/30UE,Building Control,Refunded Income,485R,refund bldg fees,12/04/2022,0000477321,361.70,Revenue,Steve Connolly,0
South Ribble Borough Council,http://statistics.data.gov.uk/id/local-authority/30UE,Capital,Cap Contract Payment,C230,Management & Construction of new Playing pitch at Bamber Bridge Leisure Centre. Delivery of the Development plan as set out in the conditions,20/04/2022,0000478030,"4,000.00",Revenue,Steve Wells Associates Ltd,0
South Ribble Borough Council,http://statistics.data.gov.uk/id/local-authority/30UE,Capital,Cap Contract Payment,C230,"Provision of Mechanical, Electrical and Plumbing Services to RIBA Stage 3 for the Leyland Town Deal Development",06/04/2022,0000477620,"13,012.50",Revenue,STEVEN A HUNT & ASSOCIATES LTD,0
South Ribble Borough Council,http://statistics.data.gov.uk/id/local-authority/30UE,Central Support Services,Reactive Repair & Maintenance,2020,To provide new structural openings to mayors parlour room as per NAME REDACTED request,06/04/2022,0000477666,600.00,Revenue,STL Projects Ltd,0
South Ribble Borough Council,http://statistics.data.gov.uk/id/local-authority/30UE,Democratic Represent and  Mgnt,External Catering Charges,4575,70 buffet for labour group meeting 12th March 22,20/04/2022,0000478033,384.30,Revenue,Style Catering,0
South Ribble Borough Council,http://statistics.data.gov.uk/id/local-authority/30UE,Democratic Represent and  Mgnt,External Catering Charges,4575,55 prepacked meals for full council on 23rd Feb,20/04/2022,0000478034,300.00,Revenue,Style Catering,0
South Ribble Borough Council,http://statistics.data.gov.uk/id/local-authority/30UE,Central Support Services,External Contractors Charges,4570,"Empty & Return of general waste yard skip (20 yard) from Unit 81 Bison Place, Moss Side Industrial Estate, Leyland, PR26 7QR",27/04/2022,0000478051,131.64,Revenue,SUEZ  RECYCLING AND REC UK LTD,0
South Ribble Borough Council,http://statistics.data.gov.uk/id/local-authority/30UE,Central Support Services,External Contractors Charges,4570,"Empty & Return of general waste yard skip (20 yard) from Unit 81 Bison Place, Moss Side Industrial Estate, Leyland, PR26 7QR",27/04/2022,0000478051,131.64,Revenue,SUEZ  RECYCLING AND REC UK LTD,0
South Ribble Borough Council,http://statistics.data.gov.uk/id/local-authority/30UE,Capital,Cap Contract Payment,C230,Work to manufacture and install two signs as per NAME REDACTED request ,12/04/2022,0000477655,"1,608.00",Revenue,TAYLOR & PICKLES LTD,0
South Ribble Borough Council,http://statistics.data.gov.uk/id/local-authority/30UE,Central Support Services,Materials General,4040,1 x start sensor VO65KPZ JFC18134,29/04/2022,0000477854,316.50,Revenue,Taylor Enginering & Fabrications Ltd,0
South Ribble Borough Council,http://statistics.data.gov.uk/id/local-authority/30UE,Central Support Services,Consultancy Fees,4541,"Professional services, BoM Validation and Fibre Survey, Low Level Design for Switching and Security, TNP Project Management",06/04/2022,0000475736,325.00,Revenue,The Networking People (TNP) Ltd,0
South Ribble Borough Council,http://statistics.data.gov.uk/id/local-authority/30UE,Central Support Services,Consultancy Fees,4541,"Professional services, BoM Validation and Fibre Survey, Low Level Design for Switching and Security, TNP Project Management",06/04/2022,0000476484,975.00,Revenue,The Networking People (TNP) Ltd,0
South Ribble Borough Council,http://statistics.data.gov.uk/id/local-authority/30UE,Central Support Services,Consultancy Fees,4541,Block of 100 RMACs,27/04/2022,0000477394,"5,000.00",Revenue,The Networking People (TNP) Ltd,0
South Ribble Borough Council,http://statistics.data.gov.uk/id/local-authority/30UE,Central Support Services,Consultancy Fees,4541,"Professional services, BoM Validation and Fibre Survey, Low Level Design for Switching and Security, TNP Project Management",27/04/2022,0000477752,"10,400.00",Revenue,The Networking People (TNP) Ltd,0
South Ribble Borough Council,http://statistics.data.gov.uk/id/local-authority/30UE,Central Support Services,Occupational Health,1408,6 x sessions for NAME REDACTED,12/04/2022,0000477837,420.00,Revenue,THE THERAPY COMPANY,0
South Ribble Borough Council,http://statistics.data.gov.uk/id/local-authority/30UE,Central Support Services,Consultancy Fees,4541,Structural inspections,12/04/2022,0000477696,625.00,Revenue,Thomas Consulting Limited,0
South Ribble Borough Council,http://statistics.data.gov.uk/id/local-authority/30UE,Corporate Management,Grants Voluntary Organisation,4711,Practical Support Payment - Food and Welfare essentials,20/04/2022,0000477905,"8,500.00",Revenue,Tippytoes Baby Bank,0
South Ribble Borough Council,http://statistics.data.gov.uk/id/local-authority/30UE,Tourism,Electricity,2303,1/3 to 31/3/22,12/04/2022,0000477748,"1,506.34",Revenue,Total Gas & power Ltd,0
South Ribble Borough Council,http://statistics.data.gov.uk/id/local-authority/30UE,Open Spaces,Electricity,2303,1/3 to 31/3/22,20/04/2022,0000477939,684.91,Revenue,Total Gas & power Ltd,0
South Ribble Borough Council,http://statistics.data.gov.uk/id/local-authority/30UE,Central Support Services,Electricity,2303,1/3 to 31/3/22,20/04/2022,0000477941,"3,161.34",Revenue,Total Gas & power Ltd,0
South Ribble Borough Council,http://statistics.data.gov.uk/id/local-authority/30UE,Central Support Services,Electricity,2303,1/3 to 31/3/22,20/04/2022,0000477944,"2,692.90",Revenue,Total Gas & power Ltd,0
South Ribble Borough Council,http://statistics.data.gov.uk/id/local-authority/30UE,Central Support Services,Gas,2304,28/2 to 31/3/22,20/04/2022,0000477987,"2,095.55",Revenue,Total Gas & power Ltd,0
South Ribble Borough Council,http://statistics.data.gov.uk/id/local-authority/30UE,Capital,Cap Expenditure Other,C750,2021-22 DOUBLE GLAZING SCHEME FUNDS AS PER TENDER SPECIFICATIONS,12/04/2022,0000477664,772.00,Revenue,TRADE WINDOWS & CONSERVATORIES,0
South Ribble Borough Council,http://statistics.data.gov.uk/id/local-authority/30UE,Capital,Cap Expenditure Other,C750,2021-22 DOUBLE GLAZING SCHEME FUNDS AS PER TENDER SPECIFICATIONS,12/04/2022,0000477740,"1,139.00",Revenue,TRADE WINDOWS & CONSERVATORIES,0
South Ribble Borough Council,http://statistics.data.gov.uk/id/local-authority/30UE,Capital,Cap Expenditure Other,C750,2021-22 DOUBLE GLAZING SCHEME FUNDS AS PER TENDER SPECIFICATIONS,12/04/2022,0000477741,"1,507.00",Revenue,TRADE WINDOWS & CONSERVATORIES,0
South Ribble Borough Council,http://statistics.data.gov.uk/id/local-authority/30UE,Capital,Cap Expenditure Other,C750,2021-22 DOUBLE GLAZING SCHEME FUNDS AS PER TENDER SPECIFICATIONS,12/04/2022,0000477831,"1,082.00",Revenue,TRADE WINDOWS & CONSERVATORIES,0
South Ribble Borough Council,http://statistics.data.gov.uk/id/local-authority/30UE,Capital,Cap Expenditure Other,C750,2021-22 DOUBLE GLAZING SCHEME FUNDS AS PER TENDER SPECIFICATIONS,12/04/2022,0000477836,"1,562.83",Revenue,TRADE WINDOWS & CONSERVATORIES,0
South Ribble Borough Council,http://statistics.data.gov.uk/id/local-authority/30UE,Central Support Services,Operational Equip & Tools,4010,1 x puller set - 08490500,27/04/2022,0000477699,299.00,Revenue,Tranzparts Group Limited,0
South Ribble Borough Council,http://statistics.data.gov.uk/id/local-authority/30UE,Central Support Services,Operational Equip & Tools,4010,1 x heavy puller set - 19310500,27/04/2022,0000477699,585.00,Revenue,Tranzparts Group Limited,0
South Ribble Borough Council,http://statistics.data.gov.uk/id/local-authority/30UE,Central Support Services,Operational Equip & Tools,4010,1 x 30T  Press- 53436400,27/04/2022,0000477699,"1,330.00",Revenue,Tranzparts Group Limited,0
South Ribble Borough Council,http://statistics.data.gov.uk/id/local-authority/30UE,Central Support Services,Operational Equip & Tools,4010,Delivery,27/04/2022,0000477699,50.00,Revenue,Tranzparts Group Limited,0
South Ribble Borough Council,http://statistics.data.gov.uk/id/local-authority/30UE,Capital,Cap Contract Payment,C230,Business Case Assurance Review - Leyland Town Deal,06/04/2022,0000477648,"7,500.00",Revenue,Trebbi Continuum Limited,0
South Ribble Borough Council,http://statistics.data.gov.uk/id/local-authority/30UE,Central Support Services,Operational Equip & Tools,4010,SALMON LITTER PICKER LITLP33,27/04/2022,0000477980,441.00,Revenue,Tudor (UK) Ltd t/a Tudor Environmental,0
South Ribble Borough Council,http://statistics.data.gov.uk/id/local-authority/30UE,Central Support Services,Operational Equip & Tools,4010,GARDEN SPADE - TUDOR 28'' WOODEN PD HANDLE CON BDS,29/04/2022,0000478115,82.08,Revenue,Tudor (UK) Ltd t/a Tudor Environmental,0
South Ribble Borough Council,http://statistics.data.gov.uk/id/local-authority/30UE,Central Support Services,Materials General,4040,HAND WIPES (150 TUB) - WET WIPES YHW/WEILS,29/04/2022,0000478115,245.88,Revenue,Tudor (UK) Ltd t/a Tudor Environmental,0
South Ribble Borough Council,http://statistics.data.gov.uk/id/local-authority/30UE,Economic Development,Miscellaneous Expenses,4851,"Marketing for MITP, 8 x Management Fee, Domain purchase & protection, Paid ads agreed original budget",12/04/2022,0000477593,750.00,Revenue,UK Media Events Ltd,0
South Ribble Borough Council,http://statistics.data.gov.uk/id/local-authority/30UE,Economic Development,Miscellaneous Expenses,4851,media ads,12/04/2022,0000477593,526.18,Revenue,UK Media Events Ltd,0
South Ribble Borough Council,http://statistics.data.gov.uk/id/local-authority/30UE,Economic Development,Miscellaneous Expenses,4851,NAME REDACTED to play at Music in the Park,12/04/2022,0000477596,"1,250.00",Revenue,UK Media Events Ltd,0
South Ribble Borough Council,http://statistics.data.gov.uk/id/local-authority/30UE,Economic Development,Miscellaneous Expenses,4851,NAME REDACTED to Compare the Music in the Park event,12/04/2022,0000477597,750.00,Revenue,UK Media Events Ltd,0
South Ribble Borough Council,http://statistics.data.gov.uk/id/local-authority/30UE,Economic Development,Miscellaneous Expenses,4851,"Marketing for MITP8 x Management Fee, Domain purchase & protection, Paid ads agreed original budget, Contingency funds ",12/04/2022,0000477754,750.00,Revenue,UK Media Events Ltd,0
South Ribble Borough Council,http://statistics.data.gov.uk/id/local-authority/30UE,Economic Development,Miscellaneous Expenses,4851,"Marketing for MITP8 x Management Fee, Domain purchase & protection, Paid ads agreed original budget, Contingency funds ",12/04/2022,0000477754,406.11,Revenue,UK Media Events Ltd,0
South Ribble Borough Council,http://statistics.data.gov.uk/id/local-authority/30UE,Economic Development,Professional Fees,4510,NAME REDACTED TO PERFORM AT THE MUSIC IN THE PARK 2022,12/04/2022,0000477861,"2,500.00",Revenue,UK Media Events Ltd,0
South Ribble Borough Council,http://statistics.data.gov.uk/id/local-authority/30UE,Economic Development,Professional Fees,4510,ROCK FM/GHR RADIO ADVERTISING `MUSIC IN THE PARK` (4 WEEKS) AS PER QUOTATION REF: SQ8382,20/04/2022,0000477862,"4,455.00",Revenue,UK Media Events Ltd,0
South Ribble Borough Council,http://statistics.data.gov.uk/id/local-authority/30UE,Economic Development,Professional Fees,4510,NAME REDACTED performance at MITP 50 % Balance,20/04/2022,0000477892,"3,500.00",Revenue,UK Media Events Ltd,0
South Ribble Borough Council,http://statistics.data.gov.uk/id/local-authority/30UE,Economic Development,Professional Fees,4510,NAME REDACTED Performance at MITP 50% Balance,20/04/2022,0000477894,"8,250.00",Revenue,UK Media Events Ltd,0
South Ribble Borough Council,http://statistics.data.gov.uk/id/local-authority/30UE,Economic Development,Professional Fees,4510,NAME REDACTED 60 minute DJ Set,20/04/2022,0000477895,"2,000.00",Revenue,UK Media Events Ltd,0
South Ribble Borough Council,http://statistics.data.gov.uk/id/local-authority/30UE,Economic Development,Professional Fees,4510,NAME REDACTED MITP Performance 50% Balance,20/04/2022,0000477896,"7,000.00",Revenue,UK Media Events Ltd,0
South Ribble Borough Council,http://statistics.data.gov.uk/id/local-authority/30UE,Economic Development,Professional Fees,4510,NAME REDACTED MITP Performance with Band 50% Balance,20/04/2022,0000477897,"13,000.00",Revenue,UK Media Events Ltd,0
South Ribble Borough Council,http://statistics.data.gov.uk/id/local-authority/30UE,Central Support Services,College Course,1403,"NAME REDACTED - POST GRADUATE, MASTER OF SCIENCE, REAL ESTATE AND PROPERTY MANAGEMENT COURSE 2021/2022",20/04/2022,0000472802,"2,880.00",Revenue,University of Salford,0
South Ribble Borough Council,http://statistics.data.gov.uk/id/local-authority/30UE,Recreation & Sport,Reactive Repair & Maintenance,2020,For the running expenses as agreed with NAME REDACTED,20/04/2022,0000477883,"11,495.00",Revenue,Vernon Carus Sports Club,0
South Ribble Borough Council,http://statistics.data.gov.uk/id/local-authority/30UE,Surplus or Deficit on Trading,Agency Staff,1121,To offer an Interim Estates Surveyor position to NAME REDACTED to provide professions surveying services for the duration of the contract,12/04/2022,0000477830,"1,762.50",Revenue,Vivid Resourcing,0
South Ribble Borough Council,http://statistics.data.gov.uk/id/local-authority/30UE,Surplus or Deficit on Trading,Agency Staff,1121,To offer an Interim Estates Surveyor position to NAME REDACTED to provide professions surveying services for the duration of the contract,20/04/2022,0000477998,"1,950.50",Revenue,Vivid Resourcing,0
South Ribble Borough Council,http://statistics.data.gov.uk/id/local-authority/30UE,Central Support Services,Network and Security,4247,01 jul 2021,12/04/2022,0000477623,"1,076.43",Revenue,VODAFONE RE:CABLE & WIRELESS UK,0
South Ribble Borough Council,http://statistics.data.gov.uk/id/local-authority/30UE,Economic Development,Investment & Improvement,485K,Additional Restriction Grants,22/04/2022,0000478082,871.22,Revenue,Voie Hairdressing Ltd,0
South Ribble Borough Council,http://statistics.data.gov.uk/id/local-authority/30UE,Corporate Management,Grants Voluntary Organisation,4711,Practical Support Payment - Food and Welfare essentials,20/04/2022,0000477916,"8,500.00",Revenue,Wade Hall Community Association,0
South Ribble Borough Council,http://statistics.data.gov.uk/id/local-authority/30UE,Economic Development,Miscellaneous Expenses,4851,string quartet for leyland festival - 02/06/2022,29/04/2022,0000478159,400.00,Revenue,Warner Entertainments,0
South Ribble Borough Council,http://statistics.data.gov.uk/id/local-authority/30UE,Central Support Services,Water Charges(Metered),2511,16/1 to 16/2/22,12/04/2022,0000477797,"2,729.83",Revenue,WaterPlus,0
South Ribble Borough Council,http://statistics.data.gov.uk/id/local-authority/30UE,Central Support Services,Water Charges(Metered),2511,16/2 to 6/1/22,12/04/2022,0000477798,"3,636.94",Revenue,WaterPlus,0
South Ribble Borough Council,http://statistics.data.gov.uk/id/local-authority/30UE,Central Support Services,Water Charges(Metered),2511,14/2 to 10/3/22,12/04/2022,0000477799,"2,439.98",Revenue,WaterPlus,0
South Ribble Borough Council,http://statistics.data.gov.uk/id/local-authority/30UE,Recreation & Sport,Planned Annual Repair & Maintenance,2021,"Cost of  hire of 1 x anti vandal toilet unit, 1 x 500 gallon effluent tank & 1 x anti vandal canteen unit to be located at Penwortham Holme to 31/3/22",20/04/2022,0000477992,434.00,Revenue,Wernick Hire Ltd,0
South Ribble Borough Council,http://statistics.data.gov.uk/id/local-authority/30UE,Recreation & Sport,Planned Annual Repair & Maintenance,2021,"Cost of  hire of 1 x anti vandal toilet unit, 1 x 500 gallon effluent tank & 1 x anti vandal canteen unit to be located at Penwortham Holme to 31/3/22",20/04/2022,0000478028,392.00,Revenue,Wernick Hire Ltd,0
South Ribble Borough Council,http://statistics.data.gov.uk/id/local-authority/30UE,Recreation & Sport,Planned Annual Repair & Maintenance,2021,"Cost of  hire of 1 x anti vandal toilet unit, 1 x 500 gallon effluent tank & 1 x anti vandal canteen unit to be located at Penwortham Holme to 31/3/22",20/04/2022,0000478029,434.00,Revenue,Wernick Hire Ltd,0
South Ribble Borough Council,http://statistics.data.gov.uk/id/local-authority/30UE,Local Tax Collection,Postage General,4291,POST FOR MARCH 2022,12/04/2022,0000477646,"1,210.83",Revenue,WHISTL  UK LTD,0
South Ribble Borough Council,http://statistics.data.gov.uk/id/local-authority/30UE,Surplus or Deficit on Trading,Professional Fees,4510,For the provision of works for a Stock condition surveys to all SRBC commercial and investment stock,06/04/2022,0000477653,"9,900.00",Revenue,WhiteleyEaves Limited,0
South Ribble Borough Council,http://statistics.data.gov.uk/id/local-authority/30UE,Capital,Cap Contract Payment,C230,Provision of Architect Services and Procurement Support Services to RIBA Stage 3 for the Leyland Town Deal Development,12/04/2022,0000477644,"31,927.12",Revenue,Wilson Mason LLP,0
South Ribble Borough Council,http://statistics.data.gov.uk/id/local-authority/30UE,Capital,Cap Contract Payment,C230,For a Architectural & Principal Designer Services (Stages 4-7) Worden Hall as per tender as per NAME REDACTED,12/04/2022,0000477668,"14,952.00",Revenue,Wilson Mason LLP,0
South Ribble Borough Council,http://statistics.data.gov.uk/id/local-authority/30UE,Capital,Cap Contract Payment,C230,Provision of Architect Services and Procurement Support Services to RIBA Stage 3 for the Leyland Town Deal Development,12/04/2022,0000477694,"1,912.50",Revenue,Wilson Mason LLP,0
South Ribble Borough Council,http://statistics.data.gov.uk/id/local-authority/30UE,Capital,Cap Contract Payment,C230,STRUCTURAL AND DRAINAGE SERVICES TO RIBA STAGE 3 FOR THE LEYLAND TOWN DEAL DEVELOPMENT,06/04/2022,0000477640,"16,846.55",Revenue,Woolgar Hunter Limited,0
South Ribble Borough Council,http://statistics.data.gov.uk/id/local-authority/30UE,Capital,Cap Contract Payment,C230,Provision of Specialist Consultancy Support - Market Improvements (Leyland Town Deal Project),06/04/2022,0000477634,"4,375.00",Revenue,Workman LLP,0
